Workbook

Sheet Form
A5: รายการได้ | C5: รายการหัก | E5: เงินได้สุทธิ
A7: =Data!I1 -> เงินเดือน | B7: =VLOOKUP(No,EmployeeTable,9,0) -> 8321 | C7: =Data!T1 -> ประกันสังคม | D7: =VLOOKUP(No,EmployeeTable,20,0) -> 416
A8: =Data!J1 -> OT(จำนวนเงิน) | B8: =VLOOKUP(No,EmployeeTable,10,0) -> 100 | C8: =Data!U1 -> ภาษี | D8: =VLOOKUP(No,EmployeeTable,21,0) -> 0 | E8: =B17-D17 -> 8005
A9: =Data!K1 -> OT(ชั่วโมง) | B9: =VLOOKUP(No,EmployeeTable,11,0) -> 1 | C9: =Data!V1 -> เปลี่ยนได้ 3 | D9: =VLOOKUP(No,EmployeeTable,22,0) -> 0
A10: =Data!L1 -> Commission | B10: =VLOOKUP(No,EmployeeTable,12,0) -> 0 | C10: =Data!W1 -> เปลี่ยนได้ 4 | D10: =VLOOKUP(No,EmployeeTable,23,0) -> 0
A11: =Data!M1 -> เปลี่ยนได้ 5 | B11: =VLOOKUP(No,EmployeeTable,13,0) -> 0 | C11: =Data!X1 -> เปลี่ยนได้ 5 | D11: =VLOOKUP(No,EmployeeTable,24,0) -> 0
A12: =Data!N1 -> เปลี่ยนได้ 6 | B12: =VLOOKUP(No,EmployeeTable,14,0) -> 0 | C12: =Data!Y1 -> เปลี่ยนได้ 6 | D12: =VLOOKUP(No,EmployeeTable,25,0) -> 0
A13: =Data!O1 -> เปลี่ยนได้ 7 | B13: =VLOOKUP(No,EmployeeTable,15,0) -> 0 | C13: =Data!Z1 -> เปลี่ยนได้ 7 | D13: =VLOOKUP(No,EmployeeTable,26,0) -> 0
A14: =Data!P1 -> เปลี่ยนได้ 8 | B14: =VLOOKUP(No,EmployeeTable,16,0) -> 0 | C14: =Data!AA1 -> 0 | D14: =VLOOKUP(No,EmployeeTable,27,0) -> 0
A15: =Data!Q1 -> 0 | B15: =VLOOKUP(No,EmployeeTable,17,0) -> 0 | C15: =Data!AB1 -> 0 | D15: =VLOOKUP(No,EmployeeTable,28,0) -> 0
A16: =Data!R1 -> 0 | B16: =VLOOKUP(No,EmployeeTable,18,0) -> 0 | C16: =Data!AC1 -> 0 | D16: =VLOOKUP(No,EmployeeTable,29,0) -> 0 | E16: ……………...…………
A17: รวมรายได้ | B17: =VLOOKUP(No,EmployeeTable,19,0) -> 8421 | C17: รวมรายการหัก | D17: =VLOOKUP(No,EmployeeTable,30,0) -> 416 | E17: ลายเซ็นพนักงาน

Sheet Data
A1: ลำดับที่ | B1: เลขประจำตัว | C1: คำนำหน้า | D1: ชื่อ | E1: นามสกุล | F1: ตำแหน่ง | G1: เลขที่บัญชี | I1: เงินเดือน | J1: OT(จำนวนเงิน) | K1: OT(ชั่วโมง) | L1: Commission | M1: เปลี่ยนได้ 5 | N1: เปลี่ยนได้ 6 | O1: เปลี่ยนได้ 7 | P1: เปลี่ยนได้ 8 | S1: รวมรับ | T1: ประกันสังคม | U1: ภาษี | V1: เปลี่ยนได้ 3 | W1: เปลี่ยนได้ 4 | X1: เปลี่ยนได้ 5 | Y1: เปลี่ยนได้ 6 | Z1: เปลี่ยนได้ 7 | AD1: รวมจ่าย | AE1: รับสุทธิ | AF1: ลดหย่อนรวม | AG1: ค่าใช้จ่ายเหมา 50% | AH1: หักค่าลดหย่อนส่วนตัว | AI1: ประกันสังคม
A2: 1 | B2: 60001 | C2: น.ส. | D2: รัชฎาภรณ์ | E2: รัตนาจุติ | F2: ผู้จัดการฝ่าย | G2: 032-293-1929 | I2: 30000 | S2: =I2+J2+L2+M2+N2+O2+P2+Q2+R2 -> 30000 | T2: =ROUND(IF(I2>15000,750,I2*5%),0) -> 750 | U2: =TAX!U2 -> 170.8333333 | V2: 145 | W2: 100 | X2: 250 | AD2: =SUM(T2:AC2) -> 1415.833333 | AE2: =S2-AD2 -> 28584.16667 | AF2: =IF(((S2*12)-AG2-AH2-AI2)<=0,0,(S2*12)-AG2-AH2-AI2) -> 191000 | AG2: =IF(((I2*12)/2)>100000,100000,(I2*12)/2) -> 100000 | AH2: 60000 | AI2: =T2*12 -> 9000
A3: 2 | B3: 60002 | C3: นาย | D3: นุติ | E3: นาคาโชติ | F3: เจ้าหน้าที่พัสดุสโตร์ | G3: 575-216-1315 | I3: 13500 | J3: 350 | K3: 10 | L3: 300 | M3: 300 | N3: 98 | S3: =I3+J3+L3+M3+N3+O3+P3+Q3+R3 -> 14548 | T3: 675 | U3: =TAX!U3 -> 0 | V3: 30 | AD3: =SUM(T3:AC3) -> 705 | AE3: =S3-AD3 -> 13843 | AF3: =IF(((S3*12)-AG3-AH3-AI3)<=0,0,(S3*12)-AG3-AH3-AI3) -> 25476 | AG3: =IF(((I3*12)/2)>100000,100000,(I3*12)/2) -> 81000 | AH3: 60000 | AI3: =T3*12 -> 8100
A4: 3 | B4: 60003 | C4: น.ส. | D4: ผุสดี | E4: จักษุ์เทพสกุล | F4: หัวหน้าแผนก | G4: 311-282-2671 | I4: 30000 | J4: 890 | K4: 8 | L4: 200 | M4: 300 | S4: 31390 | T4: 750 | U4: =TAX!U4 -> 240.3333333 | V4: 150 | W4: 70 | AD4: 1210.333333 | AE4: 30179.66667 | AF4: 207680 | AG4: 100000 | AH4: 60000 | AI4: 9000
A5: 4 | B5: 61005 | C5: นาย | D5: ร่ำรวย | E5: เงินทอง | F5: เจ้าหน้าทั่วไป | G5: 311-289-1756 | I5: 8632 | S5: 8632 | T5: =ROUND(IF(I5>15000,750,I5*5%),0) -> 432 | U5: =TAX!U5 -> 0 | AD5: 432 | AE5: 8200 | AF5: 0 | AG5: 51792 | AH5: 60000 | AI5: 5184
A6: 5 | B6: 61009 | C6: นาย | D6: ซีดีเน็กซ์ | E6: จำกัด | F6: ประธานกรรมการ | G6: 123-456-7890 | I6: 8321 | J6: 100 | K6: 1 | S6: 8421 | T6: =ROUND(IF(I6>15000,750,I6*5%),0) -> 416 | U6: =TAX!U6 -> 0 | AD6: 416 | AE6: 8005 | AF6: 0 | AG6: 49926 | AH6: 60000 | AI6: 4992
A7: 6
A8: 7
A9: 8
A10: 9
A11: 10

Sheet Print
A2: แสดงตัวอย่างลำดับที่ | C2: 5 | E2: =VLOOKUP(No,EmployeeTable,3,0)&VLOOKUP(No,EmployeeTable,4,0)&" "&VLOOKUP(No,EmployeeTable,5,0) -> นายซีดีเน็กซ์ จำกัด
A3: ประจำงวดที่ | C3: 2 สค 2562
A4: จำนวนพนักงานทั้งหมด | C4: =MAX(Data!A:A) -> 10
A5: เริ่มพิมพ์จากลำดับที่ | C5: 1
A6: สิ้นสุดการพิมพ์ลำดับที่ | C6: 1
E8: คลิกเพื่อดูวีดีโอสอนการใช้งาน

Sheet คู่มือ

Sheet Sheet1 (hidden)
A1: =VLOOKUP(No,EmployeeTable,3,0)&VLOOKUP(No,EmployeeTable,4,0)&" "&VLOOKUP(No,EmployeeTable,5,0) -> นายซีดีเน็กซ์ จำกัด
A2: =VLOOKUP(No,EmployeeTable,2,0) -> 61009
A3: =VLOOKUP(No,EmployeeTable,7,0) -> 123-456-7890
A4: =VLOOKUP(No,EmployeeTable,6,0) -> ประธานกรรมการ
A5: =VLOOKUP(No,EmployeeTable,8,0) -> 00:00:00

Sheet TAX (hidden)
A1: ขั้นภาษี | B1: ขั้นเงินได้สุทธิตั้งแต่ | D1: เงินได้สุทธิจำนวนสูงสุดของขั้น | E1: อัตราภาษี% | F1: ภาษีสูงสุดในแต่ละขั้นเงินได้ | G1: ภาษีสะสมสูงสุดของขั้น | U1: 0
A2: 1 | B2: 0 | C2: 150000 | D2: 150000 | E2: 0 | F2: 0 | U2: =IF(Data!AF2<=TAX!$D$2,TAX!$E$2%, IF(Data!AF2<=TAX!$D$3,((Data!AF2-TAX!$D$2)*TAX!$E$3%)/12, IF(Data!AF2<=TAX!$D$4,(((Data!AF2-TAX!$D$3)*TAX!$E$4%)+TAX!$G$3)/12, IF(Data!AF2<=TAX!$D$5,(((Data!AF2-TAX!$D$4)*TAX!$E$5%)+TAX!$G$4)/12, IF(Data!AF2<=TAX!$D$6,(((Data!AF2-TAX!$D$5)*TAX!$E$6%)+TAX!$G$5)/12, IF(Data!AF2<=TAX!$D$7,(((Data!AF2-TAX!$D$6)*TAX!$E$7%)+TAX!$G$6)/12, IF(Data!AF2<=TAX!$D$8,(((Data!AF2-TAX!$D$7)*TAX!$E$8%)+TAX!$G$7)/12, IF(Data!AF2>5000000,(((Data!AF2-TAX!$D$8)*TAX!$E$9%)+TAX!$G$8)/12,"")))))))) -> 170.8333333
A3: 2 | B3: 150001 | C3: 300000 | D3: 300000 | E3: 5 | F3: 7500 | G3: 7500 | U3: =IF(Data!AF3<=TAX!$D$2,TAX!$E$2%, IF(Data!AF3<=TAX!$D$3,((Data!AF3-TAX!$D$2)*TAX!$E$3%)/12, IF(Data!AF3<=TAX!$D$4,(((Data!AF3-TAX!$D$3)*TAX!$E$4%)+TAX!$G$3)/12, IF(Data!AF3<=TAX!$D$5,(((Data!AF3-TAX!$D$4)*TAX!$E$5%)+TAX!$G$4)/12, IF(Data!AF3<=TAX!$D$6,(((Data!AF3-TAX!$D$5)*TAX!$E$6%)+TAX!$G$5)/12, IF(Data!AF3<=TAX!$D$7,(((Data!AF3-TAX!$D$6)*TAX!$E$7%)+TAX!$G$6)/12, IF(Data!AF3<=TAX!$D$8,(((Data!AF3-TAX!$D$7)*TAX!$E$8%)+TAX!$G$7)/12, IF(Data!AF3>5000000,(((Data!AF3-TAX!$D$8)*TAX!$E$9%)+TAX!$G$8)/12,"")))))))) -> 0
A4: 3 | B4: 300001 | C4: 500000 | D4: 500000 | E4: 10 | F4: 20000 | G4: 27500 | U4: =IF(Data!AF4<=TAX!$D$2,TAX!$E$2%, IF(Data!AF4<=TAX!$D$3,((Data!AF4-TAX!$D$2)*TAX!$E$3%)/12, IF(Data!AF4<=TAX!$D$4,(((Data!AF4-TAX!$D$3)*TAX!$E$4%)+TAX!$G$3)/12, IF(Data!AF4<=TAX!$D$5,(((Data!AF4-TAX!$D$4)*TAX!$E$5%)+TAX!$G$4)/12, IF(Data!AF4<=TAX!$D$6,(((Data!AF4-TAX!$D$5)*TAX!$E$6%)+TAX!$G$5)/12, IF(Data!AF4<=TAX!$D$7,(((Data!AF4-TAX!$D$6)*TAX!$E$7%)+TAX!$G$6)/12, IF(Data!AF4<=TAX!$D$8,(((Data!AF4-TAX!$D$7)*TAX!$E$8%)+TAX!$G$7)/12, IF(Data!AF4>5000000,(((Data!AF4-TAX!$D$8)*TAX!$E$9%)+TAX!$G$8)/12,"")))))))) -> 240.3333333
A5: 4 | B5: 500001 | C5: 750000 | D5: 750000 | E5: 15 | F5: 37500 | G5: 65000 | U5: =IF(Data!AF5<=TAX!$D$2,TAX!$E$2%, IF(Data!AF5<=TAX!$D$3,((Data!AF5-TAX!$D$2)*TAX!$E$3%)/12, IF(Data!AF5<=TAX!$D$4,(((Data!AF5-TAX!$D$3)*TAX!$E$4%)+TAX!$G$3)/12, IF(Data!AF5<=TAX!$D$5,(((Data!AF5-TAX!$D$4)*TAX!$E$5%)+TAX!$G$4)/12, IF(Data!AF5<=TAX!$D$6,(((Data!AF5-TAX!$D$5)*TAX!$E$6%)+TAX!$G$5)/12, IF(Data!AF5<=TAX!$D$7,(((Data!AF5-TAX!$D$6)*TAX!$E$7%)+TAX!$G$6)/12, IF(Data!AF5<=TAX!$D$8,(((Data!AF5-TAX!$D$7)*TAX!$E$8%)+TAX!$G$7)/12, IF(Data!AF5>5000000,(((Data!AF5-TAX!$D$8)*TAX!$E$9%)+TAX!$G$8)/12,"")))))))) -> 0
A6: 5 | B6: 750001 | C6: 1000000 | D6: 1000000 | E6: 20 | F6: 50000 | G6: 115000 | U6: =IF(Data!AF6<=TAX!$D$2,TAX!$E$2%, IF(Data!AF6<=TAX!$D$3,((Data!AF6-TAX!$D$2)*TAX!$E$3%)/12, IF(Data!AF6<=TAX!$D$4,(((Data!AF6-TAX!$D$3)*TAX!$E$4%)+TAX!$G$3)/12, IF(Data!AF6<=TAX!$D$5,(((Data!AF6-TAX!$D$4)*TAX!$E$5%)+TAX!$G$4)/12, IF(Data!AF6<=TAX!$D$6,(((Data!AF6-TAX!$D$5)*TAX!$E$6%)+TAX!$G$5)/12, IF(Data!AF6<=TAX!$D$7,(((Data!AF6-TAX!$D$6)*TAX!$E$7%)+TAX!$G$6)/12, IF(Data!AF6<=TAX!$D$8,(((Data!AF6-TAX!$D$7)*TAX!$E$8%)+TAX!$G$7)/12, IF(Data!AF6>5000000,(((Data!AF6-TAX!$D$8)*TAX!$E$9%)+TAX!$G$8)/12,"")))))))) -> 0
A7: 6 | B7: 1000001 | C7: 2000000 | D7: 2000000 | E7: 25 | F7: 250000 | G7: 365000 | U7: =IF(Data!#REF!<=TAX!$D$2,TAX!$E$2%, IF(Data!#REF!<=TAX!$D$3,((Data!#REF!-TAX!$D$2)*TAX!$E$3%)/12, IF(Data!#REF!<=TAX!$D$4,(((Data!#REF!-TAX!$D$3)*TAX!$E$4%)+TAX!$G$3)/12, IF(Data!#REF!<=TAX!$D$5,(((Data!#REF!-TAX!$D$4)*TAX!$E$5%)+TAX!$G$4)/12, IF(Data!#REF!<=TAX!$D$6,(((Data!#REF!-TAX!$D$5)*TAX!$E$6%)+TAX!$G$5)/12, IF(Data!#REF!<=TAX!$D$7,(((Data!#REF!-TAX!$D$6)*TAX!$E$7%)+TAX!$G$6)/12, IF(Data!#REF!<=TAX!$D$8,(((Data!#REF!-TAX!$D$7)*TAX!$E$8%)+TAX!$G$7)/12, IF(Data!#REF!>5000000,(((Data!#REF!-TAX!$D$8)*TAX!$E$9%)+TAX!$G$8)/12,"")))))))) -> 
A8: 7 | B8: 2000001 | C8: 5000000 | D8: 5000000 | E8: 30 | F8: 900000 | G8: 1265000 | U8: =IF(Data!#REF!<=TAX!$D$2,TAX!$E$2%, IF(Data!#REF!<=TAX!$D$3,((Data!#REF!-TAX!$D$2)*TAX!$E$3%)/12, IF(Data!#REF!<=TAX!$D$4,(((Data!#REF!-TAX!$D$3)*TAX!$E$4%)+TAX!$G$3)/12, IF(Data!#REF!<=TAX!$D$5,(((Data!#REF!-TAX!$D$4)*TAX!$E$5%)+TAX!$G$4)/12, IF(Data!#REF!<=TAX!$D$6,(((Data!#REF!-TAX!$D$5)*TAX!$E$6%)+TAX!$G$5)/12, IF(Data!#REF!<=TAX!$D$7,(((Data!#REF!-TAX!$D$6)*TAX!$E$7%)+TAX!$G$6)/12, IF(Data!#REF!<=TAX!$D$8,(((Data!#REF!-TAX!$D$7)*TAX!$E$8%)+TAX!$G$7)/12, IF(Data!#REF!>5000000,(((Data!#REF!-TAX!$D$8)*TAX!$E$9%)+TAX!$G$8)/12,"")))))))) -> 
A9: 8 | B9: 5000001 | E9: 35 | F9: – | U9: =IF(Data!#REF!<=TAX!$D$2,TAX!$E$2%, IF(Data!#REF!<=TAX!$D$3,((Data!#REF!-TAX!$D$2)*TAX!$E$3%)/12, IF(Data!#REF!<=TAX!$D$4,(((Data!#REF!-TAX!$D$3)*TAX!$E$4%)+TAX!$G$3)/12, IF(Data!#REF!<=TAX!$D$5,(((Data!#REF!-TAX!$D$4)*TAX!$E$5%)+TAX!$G$4)/12, IF(Data!#REF!<=TAX!$D$6,(((Data!#REF!-TAX!$D$5)*TAX!$E$6%)+TAX!$G$5)/12, IF(Data!#REF!<=TAX!$D$7,(((Data!#REF!-TAX!$D$6)*TAX!$E$7%)+TAX!$G$6)/12, IF(Data!#REF!<=TAX!$D$8,(((Data!#REF!-TAX!$D$7)*TAX!$E$8%)+TAX!$G$7)/12, IF(Data!#REF!>5000000,(((Data!#REF!-TAX!$D$8)*TAX!$E$9%)+TAX!$G$8)/12,"")))))))) -> 
U10: =IF(Data!#REF!<=TAX!$D$2,TAX!$E$2%, IF(Data!#REF!<=TAX!$D$3,((Data!#REF!-TAX!$D$2)*TAX!$E$3%)/12, IF(Data!#REF!<=TAX!$D$4,(((Data!#REF!-TAX!$D$3)*TAX!$E$4%)+TAX!$G$3)/12, IF(Data!#REF!<=TAX!$D$5,(((Data!#REF!-TAX!$D$4)*TAX!$E$5%)+TAX!$G$4)/12, IF(Data!#REF!<=TAX!$D$6,(((Data!#REF!-TAX!$D$5)*TAX!$E$6%)+TAX!$G$5)/12, IF(Data!#REF!<=TAX!$D$7,(((Data!#REF!-TAX!$D$6)*TAX!$E$7%)+TAX!$G$6)/12, IF(Data!#REF!<=TAX!$D$8,(((Data!#REF!-TAX!$D$7)*TAX!$E$8%)+TAX!$G$7)/12, IF(Data!#REF!>5000000,(((Data!#REF!-TAX!$D$8)*TAX!$E$9%)+TAX!$G$8)/12,"")))))))) -> 
U11: =IF(Data!#REF!<=TAX!$D$2,TAX!$E$2%, IF(Data!#REF!<=TAX!$D$3,((Data!#REF!-TAX!$D$2)*TAX!$E$3%)/12, IF(Data!#REF!<=TAX!$D$4,(((Data!#REF!-TAX!$D$3)*TAX!$E$4%)+TAX!$G$3)/12, IF(Data!#REF!<=TAX!$D$5,(((Data!#REF!-TAX!$D$4)*TAX!$E$5%)+TAX!$G$4)/12, IF(Data!#REF!<=TAX!$D$6,(((Data!#REF!-TAX!$D$5)*TAX!$E$6%)+TAX!$G$5)/12, IF(Data!#REF!<=TAX!$D$7,(((Data!#REF!-TAX!$D$6)*TAX!$E$7%)+TAX!$G$6)/12, IF(Data!#REF!<=TAX!$D$8,(((Data!#REF!-TAX!$D$7)*TAX!$E$8%)+TAX!$G$7)/12, IF(Data!#REF!>5000000,(((Data!#REF!-TAX!$D$8)*TAX!$E$9%)+TAX!$G$8)/12,"")))))))) -> 
U12: =IF(Data!#REF!<=TAX!$D$2,TAX!$E$2%, IF(Data!#REF!<=TAX!$D$3,((Data!#REF!-TAX!$D$2)*TAX!$E$3%)/12, IF(Data!#REF!<=TAX!$D$4,(((Data!#REF!-TAX!$D$3)*TAX!$E$4%)+TAX!$G$3)/12, IF(Data!#REF!<=TAX!$D$5,(((Data!#REF!-TAX!$D$4)*TAX!$E$5%)+TAX!$G$4)/12, IF(Data!#REF!<=TAX!$D$6,(((Data!#REF!-TAX!$D$5)*TAX!$E$6%)+TAX!$G$5)/12, IF(Data!#REF!<=TAX!$D$7,(((Data!#REF!-TAX!$D$6)*TAX!$E$7%)+TAX!$G$6)/12, IF(Data!#REF!<=TAX!$D$8,(((Data!#REF!-TAX!$D$7)*TAX!$E$8%)+TAX!$G$7)/12, IF(Data!#REF!>5000000,(((Data!#REF!-TAX!$D$8)*TAX!$E$9%)+TAX!$G$8)/12,"")))))))) -> 
U13: =IF(Data!#REF!<=TAX!$D$2,TAX!$E$2%, IF(Data!#REF!<=TAX!$D$3,((Data!#REF!-TAX!$D$2)*TAX!$E$3%)/12, IF(Data!#REF!<=TAX!$D$4,(((Data!#REF!-TAX!$D$3)*TAX!$E$4%)+TAX!$G$3)/12, IF(Data!#REF!<=TAX!$D$5,(((Data!#REF!-TAX!$D$4)*TAX!$E$5%)+TAX!$G$4)/12, IF(Data!#REF!<=TAX!$D$6,(((Data!#REF!-TAX!$D$5)*TAX!$E$6%)+TAX!$G$5)/12, IF(Data!#REF!<=TAX!$D$7,(((Data!#REF!-TAX!$D$6)*TAX!$E$7%)+TAX!$G$6)/12, IF(Data!#REF!<=TAX!$D$8,(((Data!#REF!-TAX!$D$7)*TAX!$E$8%)+TAX!$G$7)/12, IF(Data!#REF!>5000000,(((Data!#REF!-TAX!$D$8)*TAX!$E$9%)+TAX!$G$8)/12,"")))))))) -> 
U14: =IF(Data!#REF!<=TAX!$D$2,TAX!$E$2%, IF(Data!#REF!<=TAX!$D$3,((Data!#REF!-TAX!$D$2)*TAX!$E$3%)/12, IF(Data!#REF!<=TAX!$D$4,(((Data!#REF!-TAX!$D$3)*TAX!$E$4%)+TAX!$G$3)/12, IF(Data!#REF!<=TAX!$D$5,(((Data!#REF!-TAX!$D$4)*TAX!$E$5%)+TAX!$G$4)/12, IF(Data!#REF!<=TAX!$D$6,(((Data!#REF!-TAX!$D$5)*TAX!$E$6%)+TAX!$G$5)/12, IF(Data!#REF!<=TAX!$D$7,(((Data!#REF!-TAX!$D$6)*TAX!$E$7%)+TAX!$G$6)/12, IF(Data!#REF!<=TAX!$D$8,(((Data!#REF!-TAX!$D$7)*TAX!$E$8%)+TAX!$G$7)/12, IF(Data!#REF!>5000000,(((Data!#REF!-TAX!$D$8)*TAX!$E$9%)+TAX!$G$8)/12,"")))))))) -> 
U15: =IF(Data!#REF!<=TAX!$D$2,TAX!$E$2%, IF(Data!#REF!<=TAX!$D$3,((Data!#REF!-TAX!$D$2)*TAX!$E$3%)/12, IF(Data!#REF!<=TAX!$D$4,(((Data!#REF!-TAX!$D$3)*TAX!$E$4%)+TAX!$G$3)/12, IF(Data!#REF!<=TAX!$D$5,(((Data!#REF!-TAX!$D$4)*TAX!$E$5%)+TAX!$G$4)/12, IF(Data!#REF!<=TAX!$D$6,(((Data!#REF!-TAX!$D$5)*TAX!$E$6%)+TAX!$G$5)/12, IF(Data!#REF!<=TAX!$D$7,(((Data!#REF!-TAX!$D$6)*TAX!$E$7%)+TAX!$G$6)/12, IF(Data!#REF!<=TAX!$D$8,(((Data!#REF!-TAX!$D$7)*TAX!$E$8%)+TAX!$G$7)/12, IF(Data!#REF!>5000000,(((Data!#REF!-TAX!$D$8)*TAX!$E$9%)+TAX!$G$8)/12,"")))))))) -> 
U16: =IF(Data!#REF!<=TAX!$D$2,TAX!$E$2%, IF(Data!#REF!<=TAX!$D$3,((Data!#REF!-TAX!$D$2)*TAX!$E$3%)/12, IF(Data!#REF!<=TAX!$D$4,(((Data!#REF!-TAX!$D$3)*TAX!$E$4%)+TAX!$G$3)/12, IF(Data!#REF!<=TAX!$D$5,(((Data!#REF!-TAX!$D$4)*TAX!$E$5%)+TAX!$G$4)/12, IF(Data!#REF!<=TAX!$D$6,(((Data!#REF!-TAX!$D$5)*TAX!$E$6%)+TAX!$G$5)/12, IF(Data!#REF!<=TAX!$D$7,(((Data!#REF!-TAX!$D$6)*TAX!$E$7%)+TAX!$G$6)/12, IF(Data!#REF!<=TAX!$D$8,(((Data!#REF!-TAX!$D$7)*TAX!$E$8%)+TAX!$G$7)/12, IF(Data!#REF!>5000000,(((Data!#REF!-TAX!$D$8)*TAX!$E$9%)+TAX!$G$8)/12,"")))))))) -> 
U17: =IF(Data!#REF!<=TAX!$D$2,TAX!$E$2%, IF(Data!#REF!<=TAX!$D$3,((Data!#REF!-TAX!$D$2)*TAX!$E$3%)/12, IF(Data!#REF!<=TAX!$D$4,(((Data!#REF!-TAX!$D$3)*TAX!$E$4%)+TAX!$G$3)/12, IF(Data!#REF!<=TAX!$D$5,(((Data!#REF!-TAX!$D$4)*TAX!$E$5%)+TAX!$G$4)/12, IF(Data!#REF!<=TAX!$D$6,(((Data!#REF!-TAX!$D$5)*TAX!$E$6%)+TAX!$G$5)/12, IF(Data!#REF!<=TAX!$D$7,(((Data!#REF!-TAX!$D$6)*TAX!$E$7%)+TAX!$G$6)/12, IF(Data!#REF!<=TAX!$D$8,(((Data!#REF!-TAX!$D$7)*TAX!$E$8%)+TAX!$G$7)/12, IF(Data!#REF!>5000000,(((Data!#REF!-TAX!$D$8)*TAX!$E$9%)+TAX!$G$8)/12,"")))))))) -> 
U18: =IF(Data!#REF!<=TAX!$D$2,TAX!$E$2%, IF(Data!#REF!<=TAX!$D$3,((Data!#REF!-TAX!$D$2)*TAX!$E$3%)/12, IF(Data!#REF!<=TAX!$D$4,(((Data!#REF!-TAX!$D$3)*TAX!$E$4%)+TAX!$G$3)/12, IF(Data!#REF!<=TAX!$D$5,(((Data!#REF!-TAX!$D$4)*TAX!$E$5%)+TAX!$G$4)/12, IF(Data!#REF!<=TAX!$D$6,(((Data!#REF!-TAX!$D$5)*TAX!$E$6%)+TAX!$G$5)/12, IF(Data!#REF!<=TAX!$D$7,(((Data!#REF!-TAX!$D$6)*TAX!$E$7%)+TAX!$G$6)/12, IF(Data!#REF!<=TAX!$D$8,(((Data!#REF!-TAX!$D$7)*TAX!$E$8%)+TAX!$G$7)/12, IF(Data!#REF!>5000000,(((Data!#REF!-TAX!$D$8)*TAX!$E$9%)+TAX!$G$8)/12,"")))))))) -> 
U19: =IF(Data!#REF!<=TAX!$D$2,TAX!$E$2%, IF(Data!#REF!<=TAX!$D$3,((Data!#REF!-TAX!$D$2)*TAX!$E$3%)/12, IF(Data!#REF!<=TAX!$D$4,(((Data!#REF!-TAX!$D$3)*TAX!$E$4%)+TAX!$G$3)/12, IF(Data!#REF!<=TAX!$D$5,(((Data!#REF!-TAX!$D$4)*TAX!$E$5%)+TAX!$G$4)/12, IF(Data!#REF!<=TAX!$D$6,(((Data!#REF!-TAX!$D$5)*TAX!$E$6%)+TAX!$G$5)/12, IF(Data!#REF!<=TAX!$D$7,(((Data!#REF!-TAX!$D$6)*TAX!$E$7%)+TAX!$G$6)/12, IF(Data!#REF!<=TAX!$D$8,(((Data!#REF!-TAX!$D$7)*TAX!$E$8%)+TAX!$G$7)/12, IF(Data!#REF!>5000000,(((Data!#REF!-TAX!$D$8)*TAX!$E$9%)+TAX!$G$8)/12,"")))))))) -> 
U20: =IF(Data!#REF!<=TAX!$D$2,TAX!$E$2%, IF(Data!#REF!<=TAX!$D$3,((Data!#REF!-TAX!$D$2)*TAX!$E$3%)/12, IF(Data!#REF!<=TAX!$D$4,(((Data!#REF!-TAX!$D$3)*TAX!$E$4%)+TAX!$G$3)/12, IF(Data!#REF!<=TAX!$D$5,(((Data!#REF!-TAX!$D$4)*TAX!$E$5%)+TAX!$G$4)/12, IF(Data!#REF!<=TAX!$D$6,(((Data!#REF!-TAX!$D$5)*TAX!$E$6%)+TAX!$G$5)/12, IF(Data!#REF!<=TAX!$D$7,(((Data!#REF!-TAX!$D$6)*TAX!$E$7%)+TAX!$G$6)/12, IF(Data!#REF!<=TAX!$D$8,(((Data!#REF!-TAX!$D$7)*TAX!$E$8%)+TAX!$G$7)/12, IF(Data!#REF!>5000000,(((Data!#REF!-TAX!$D$8)*TAX!$E$9%)+TAX!$G$8)/12,"")))))))) -> 
U21: =IF(Data!#REF!<=TAX!$D$2,TAX!$E$2%, IF(Data!#REF!<=TAX!$D$3,((Data!#REF!-TAX!$D$2)*TAX!$E$3%)/12, IF(Data!#REF!<=TAX!$D$4,(((Data!#REF!-TAX!$D$3)*TAX!$E$4%)+TAX!$G$3)/12, IF(Data!#REF!<=TAX!$D$5,(((Data!#REF!-TAX!$D$4)*TAX!$E$5%)+TAX!$G$4)/12, IF(Data!#REF!<=TAX!$D$6,(((Data!#REF!-TAX!$D$5)*TAX!$E$6%)+TAX!$G$5)/12, IF(Data!#REF!<=TAX!$D$7,(((Data!#REF!-TAX!$D$6)*TAX!$E$7%)+TAX!$G$6)/12, IF(Data!#REF!<=TAX!$D$8,(((Data!#REF!-TAX!$D$7)*TAX!$E$8%)+TAX!$G$7)/12, IF(Data!#REF!>5000000,(((Data!#REF!-TAX!$D$8)*TAX!$E$9%)+TAX!$G$8)/12,"")))))))) -> 
U22: =IF(Data!#REF!<=TAX!$D$2,TAX!$E$2%, IF(Data!#REF!<=TAX!$D$3,((Data!#REF!-TAX!$D$2)*TAX!$E$3%)/12, IF(Data!#REF!<=TAX!$D$4,(((Data!#REF!-TAX!$D$3)*TAX!$E$4%)+TAX!$G$3)/12, IF(Data!#REF!<=TAX!$D$5,(((Data!#REF!-TAX!$D$4)*TAX!$E$5%)+TAX!$G$4)/12, IF(Data!#REF!<=TAX!$D$6,(((Data!#REF!-TAX!$D$5)*TAX!$E$6%)+TAX!$G$5)/12, IF(Data!#REF!<=TAX!$D$7,(((Data!#REF!-TAX!$D$6)*TAX!$E$7%)+TAX!$G$6)/12, IF(Data!#REF!<=TAX!$D$8,(((Data!#REF!-TAX!$D$7)*TAX!$E$8%)+TAX!$G$7)/12, IF(Data!#REF!>5000000,(((Data!#REF!-TAX!$D$8)*TAX!$E$9%)+TAX!$G$8)/12,"")))))))) -> 
U23: =IF(Data!#REF!<=TAX!$D$2,TAX!$E$2%, IF(Data!#REF!<=TAX!$D$3,((Data!#REF!-TAX!$D$2)*TAX!$E$3%)/12, IF(Data!#REF!<=TAX!$D$4,(((Data!#REF!-TAX!$D$3)*TAX!$E$4%)+TAX!$G$3)/12, IF(Data!#REF!<=TAX!$D$5,(((Data!#REF!-TAX!$D$4)*TAX!$E$5%)+TAX!$G$4)/12, IF(Data!#REF!<=TAX!$D$6,(((Data!#REF!-TAX!$D$5)*TAX!$E$6%)+TAX!$G$5)/12, IF(Data!#REF!<=TAX!$D$7,(((Data!#REF!-TAX!$D$6)*TAX!$E$7%)+TAX!$G$6)/12, IF(Data!#REF!<=TAX!$D$8,(((Data!#REF!-TAX!$D$7)*TAX!$E$8%)+TAX!$G$7)/12, IF(Data!#REF!>5000000,(((Data!#REF!-TAX!$D$8)*TAX!$E$9%)+TAX!$G$8)/12,"")))))))) -> 
U24: =IF(Data!#REF!<=TAX!$D$2,TAX!$E$2%, IF(Data!#REF!<=TAX!$D$3,((Data!#REF!-TAX!$D$2)*TAX!$E$3%)/12, IF(Data!#REF!<=TAX!$D$4,(((Data!#REF!-TAX!$D$3)*TAX!$E$4%)+TAX!$G$3)/12, IF(Data!#REF!<=TAX!$D$5,(((Data!#REF!-TAX!$D$4)*TAX!$E$5%)+TAX!$G$4)/12, IF(Data!#REF!<=TAX!$D$6,(((Data!#REF!-TAX!$D$5)*TAX!$E$6%)+TAX!$G$5)/12, IF(Data!#REF!<=TAX!$D$7,(((Data!#REF!-TAX!$D$6)*TAX!$E$7%)+TAX!$G$6)/12, IF(Data!#REF!<=TAX!$D$8,(((Data!#REF!-TAX!$D$7)*TAX!$E$8%)+TAX!$G$7)/12, IF(Data!#REF!>5000000,(((Data!#REF!-TAX!$D$8)*TAX!$E$9%)+TAX!$G$8)/12,"")))))))) -> 
U25: =IF(Data!#REF!<=TAX!$D$2,TAX!$E$2%, IF(Data!#REF!<=TAX!$D$3,((Data!#REF!-TAX!$D$2)*TAX!$E$3%)/12, IF(Data!#REF!<=TAX!$D$4,(((Data!#REF!-TAX!$D$3)*TAX!$E$4%)+TAX!$G$3)/12, IF(Data!#REF!<=TAX!$D$5,(((Data!#REF!-TAX!$D$4)*TAX!$E$5%)+TAX!$G$4)/12, IF(Data!#REF!<=TAX!$D$6,(((Data!#REF!-TAX!$D$5)*TAX!$E$6%)+TAX!$G$5)/12, IF(Data!#REF!<=TAX!$D$7,(((Data!#REF!-TAX!$D$6)*TAX!$E$7%)+TAX!$G$6)/12, IF(Data!#REF!<=TAX!$D$8,(((Data!#REF!-TAX!$D$7)*TAX!$E$8%)+TAX!$G$7)/12, IF(Data!#REF!>5000000,(((Data!#REF!-TAX!$D$8)*TAX!$E$9%)+TAX!$G$8)/12,"")))))))) -> 
U26: =IF(Data!#REF!<=TAX!$D$2,TAX!$E$2%, IF(Data!#REF!<=TAX!$D$3,((Data!#REF!-TAX!$D$2)*TAX!$E$3%)/12, IF(Data!#REF!<=TAX!$D$4,(((Data!#REF!-TAX!$D$3)*TAX!$E$4%)+TAX!$G$3)/12, IF(Data!#REF!<=TAX!$D$5,(((Data!#REF!-TAX!$D$4)*TAX!$E$5%)+TAX!$G$4)/12, IF(Data!#REF!<=TAX!$D$6,(((Data!#REF!-TAX!$D$5)*TAX!$E$6%)+TAX!$G$5)/12, IF(Data!#REF!<=TAX!$D$7,(((Data!#REF!-TAX!$D$6)*TAX!$E$7%)+TAX!$G$6)/12, IF(Data!#REF!<=TAX!$D$8,(((Data!#REF!-TAX!$D$7)*TAX!$E$8%)+TAX!$G$7)/12, IF(Data!#REF!>5000000,(((Data!#REF!-TAX!$D$8)*TAX!$E$9%)+TAX!$G$8)/12,"")))))))) -> 
U27: =IF(Data!#REF!<=TAX!$D$2,TAX!$E$2%, IF(Data!#REF!<=TAX!$D$3,((Data!#REF!-TAX!$D$2)*TAX!$E$3%)/12, IF(Data!#REF!<=TAX!$D$4,(((Data!#REF!-TAX!$D$3)*TAX!$E$4%)+TAX!$G$3)/12, IF(Data!#REF!<=TAX!$D$5,(((Data!#REF!-TAX!$D$4)*TAX!$E$5%)+TAX!$G$4)/12, IF(Data!#REF!<=TAX!$D$6,(((Data!#REF!-TAX!$D$5)*TAX!$E$6%)+TAX!$G$5)/12, IF(Data!#REF!<=TAX!$D$7,(((Data!#REF!-TAX!$D$6)*TAX!$E$7%)+TAX!$G$6)/12, IF(Data!#REF!<=TAX!$D$8,(((Data!#REF!-TAX!$D$7)*TAX!$E$8%)+TAX!$G$7)/12, IF(Data!#REF!>5000000,(((Data!#REF!-TAX!$D$8)*TAX!$E$9%)+TAX!$G$8)/12,"")))))))) -> 
U28: =IF(Data!#REF!<=TAX!$D$2,TAX!$E$2%, IF(Data!#REF!<=TAX!$D$3,((Data!#REF!-TAX!$D$2)*TAX!$E$3%)/12, IF(Data!#REF!<=TAX!$D$4,(((Data!#REF!-TAX!$D$3)*TAX!$E$4%)+TAX!$G$3)/12, IF(Data!#REF!<=TAX!$D$5,(((Data!#REF!-TAX!$D$4)*TAX!$E$5%)+TAX!$G$4)/12, IF(Data!#REF!<=TAX!$D$6,(((Data!#REF!-TAX!$D$5)*TAX!$E$6%)+TAX!$G$5)/12, IF(Data!#REF!<=TAX!$D$7,(((Data!#REF!-TAX!$D$6)*TAX!$E$7%)+TAX!$G$6)/12, IF(Data!#REF!<=TAX!$D$8,(((Data!#REF!-TAX!$D$7)*TAX!$E$8%)+TAX!$G$7)/12, IF(Data!#REF!>5000000,(((Data!#REF!-TAX!$D$8)*TAX!$E$9%)+TAX!$G$8)/12,"")))))))) -> 
U29: =IF(Data!#REF!<=TAX!$D$2,TAX!$E$2%, IF(Data!#REF!<=TAX!$D$3,((Data!#REF!-TAX!$D$2)*TAX!$E$3%)/12, IF(Data!#REF!<=TAX!$D$4,(((Data!#REF!-TAX!$D$3)*TAX!$E$4%)+TAX!$G$3)/12, IF(Data!#REF!<=TAX!$D$5,(((Data!#REF!-TAX!$D$4)*TAX!$E$5%)+TAX!$G$4)/12, IF(Data!#REF!<=TAX!$D$6,(((Data!#REF!-TAX!$D$5)*TAX!$E$6%)+TAX!$G$5)/12, IF(Data!#REF!<=TAX!$D$7,(((Data!#REF!-TAX!$D$6)*TAX!$E$7%)+TAX!$G$6)/12, IF(Data!#REF!<=TAX!$D$8,(((Data!#REF!-TAX!$D$7)*TAX!$E$8%)+TAX!$G$7)/12, IF(Data!#REF!>5000000,(((Data!#REF!-TAX!$D$8)*TAX!$E$9%)+TAX!$G$8)/12,"")))))))) -> 
U30: =IF(Data!#REF!<=TAX!$D$2,TAX!$E$2%, IF(Data!#REF!<=TAX!$D$3,((Data!#REF!-TAX!$D$2)*TAX!$E$3%)/12, IF(Data!#REF!<=TAX!$D$4,(((Data!#REF!-TAX!$D$3)*TAX!$E$4%)+TAX!$G$3)/12, IF(Data!#REF!<=TAX!$D$5,(((Data!#REF!-TAX!$D$4)*TAX!$E$5%)+TAX!$G$4)/12, IF(Data!#REF!<=TAX!$D$6,(((Data!#REF!-TAX!$D$5)*TAX!$E$6%)+TAX!$G$5)/12, IF(Data!#REF!<=TAX!$D$7,(((Data!#REF!-TAX!$D$6)*TAX!$E$7%)+TAX!$G$6)/12, IF(Data!#REF!<=TAX!$D$8,(((Data!#REF!-TAX!$D$7)*TAX!$E$8%)+TAX!$G$7)/12, IF(Data!#REF!>5000000,(((Data!#REF!-TAX!$D$8)*TAX!$E$9%)+TAX!$G$8)/12,"")))))))) -> 
U31: =IF(Data!#REF!<=TAX!$D$2,TAX!$E$2%, IF(Data!#REF!<=TAX!$D$3,((Data!#REF!-TAX!$D$2)*TAX!$E$3%)/12, IF(Data!#REF!<=TAX!$D$4,(((Data!#REF!-TAX!$D$3)*TAX!$E$4%)+TAX!$G$3)/12, IF(Data!#REF!<=TAX!$D$5,(((Data!#REF!-TAX!$D$4)*TAX!$E$5%)+TAX!$G$4)/12, IF(Data!#REF!<=TAX!$D$6,(((Data!#REF!-TAX!$D$5)*TAX!$E$6%)+TAX!$G$5)/12, IF(Data!#REF!<=TAX!$D$7,(((Data!#REF!-TAX!$D$6)*TAX!$E$7%)+TAX!$G$6)/12, IF(Data!#REF!<=TAX!$D$8,(((Data!#REF!-TAX!$D$7)*TAX!$E$8%)+TAX!$G$7)/12, IF(Data!#REF!>5000000,(((Data!#REF!-TAX!$D$8)*TAX!$E$9%)+TAX!$G$8)/12,"")))))))) -> 
U32: =IF(Data!#REF!<=TAX!$D$2,TAX!$E$2%, IF(Data!#REF!<=TAX!$D$3,((Data!#REF!-TAX!$D$2)*TAX!$E$3%)/12, IF(Data!#REF!<=TAX!$D$4,(((Data!#REF!-TAX!$D$3)*TAX!$E$4%)+TAX!$G$3)/12, IF(Data!#REF!<=TAX!$D$5,(((Data!#REF!-TAX!$D$4)*TAX!$E$5%)+TAX!$G$4)/12, IF(Data!#REF!<=TAX!$D$6,(((Data!#REF!-TAX!$D$5)*TAX!$E$6%)+TAX!$G$5)/12, IF(Data!#REF!<=TAX!$D$7,(((Data!#REF!-TAX!$D$6)*TAX!$E$7%)+TAX!$G$6)/12, IF(Data!#REF!<=TAX!$D$8,(((Data!#REF!-TAX!$D$7)*TAX!$E$8%)+TAX!$G$7)/12, IF(Data!#REF!>5000000,(((Data!#REF!-TAX!$D$8)*TAX!$E$9%)+TAX!$G$8)/12,"")))))))) -> 
U33: =IF(Data!#REF!<=TAX!$D$2,TAX!$E$2%, IF(Data!#REF!<=TAX!$D$3,((Data!#REF!-TAX!$D$2)*TAX!$E$3%)/12, IF(Data!#REF!<=TAX!$D$4,(((Data!#REF!-TAX!$D$3)*TAX!$E$4%)+TAX!$G$3)/12, IF(Data!#REF!<=TAX!$D$5,(((Data!#REF!-TAX!$D$4)*TAX!$E$5%)+TAX!$G$4)/12, IF(Data!#REF!<=TAX!$D$6,(((Data!#REF!-TAX!$D$5)*TAX!$E$6%)+TAX!$G$5)/12, IF(Data!#REF!<=TAX!$D$7,(((Data!#REF!-TAX!$D$6)*TAX!$E$7%)+TAX!$G$6)/12, IF(Data!#REF!<=TAX!$D$8,(((Data!#REF!-TAX!$D$7)*TAX!$E$8%)+TAX!$G$7)/12, IF(Data!#REF!>5000000,(((Data!#REF!-TAX!$D$8)*TAX!$E$9%)+TAX!$G$8)/12,"")))))))) -> 
U34: =IF(Data!#REF!<=TAX!$D$2,TAX!$E$2%, IF(Data!#REF!<=TAX!$D$3,((Data!#REF!-TAX!$D$2)*TAX!$E$3%)/12, IF(Data!#REF!<=TAX!$D$4,(((Data!#REF!-TAX!$D$3)*TAX!$E$4%)+TAX!$G$3)/12, IF(Data!#REF!<=TAX!$D$5,(((Data!#REF!-TAX!$D$4)*TAX!$E$5%)+TAX!$G$4)/12, IF(Data!#REF!<=TAX!$D$6,(((Data!#REF!-TAX!$D$5)*TAX!$E$6%)+TAX!$G$5)/12, IF(Data!#REF!<=TAX!$D$7,(((Data!#REF!-TAX!$D$6)*TAX!$E$7%)+TAX!$G$6)/12, IF(Data!#REF!<=TAX!$D$8,(((Data!#REF!-TAX!$D$7)*TAX!$E$8%)+TAX!$G$7)/12, IF(Data!#REF!>5000000,(((Data!#REF!-TAX!$D$8)*TAX!$E$9%)+TAX!$G$8)/12,"")))))))) -> 
U35: =IF(Data!#REF!<=TAX!$D$2,TAX!$E$2%, IF(Data!#REF!<=TAX!$D$3,((Data!#REF!-TAX!$D$2)*TAX!$E$3%)/12, IF(Data!#REF!<=TAX!$D$4,(((Data!#REF!-TAX!$D$3)*TAX!$E$4%)+TAX!$G$3)/12, IF(Data!#REF!<=TAX!$D$5,(((Data!#REF!-TAX!$D$4)*TAX!$E$5%)+TAX!$G$4)/12, IF(Data!#REF!<=TAX!$D$6,(((Data!#REF!-TAX!$D$5)*TAX!$E$6%)+TAX!$G$5)/12, IF(Data!#REF!<=TAX!$D$7,(((Data!#REF!-TAX!$D$6)*TAX!$E$7%)+TAX!$G$6)/12, IF(Data!#REF!<=TAX!$D$8,(((Data!#REF!-TAX!$D$7)*TAX!$E$8%)+TAX!$G$7)/12, IF(Data!#REF!>5000000,(((Data!#REF!-TAX!$D$8)*TAX!$E$9%)+TAX!$G$8)/12,"")))))))) -> 
U36: =IF(Data!#REF!<=TAX!$D$2,TAX!$E$2%, IF(Data!#REF!<=TAX!$D$3,((Data!#REF!-TAX!$D$2)*TAX!$E$3%)/12, IF(Data!#REF!<=TAX!$D$4,(((Data!#REF!-TAX!$D$3)*TAX!$E$4%)+TAX!$G$3)/12, IF(Data!#REF!<=TAX!$D$5,(((Data!#REF!-TAX!$D$4)*TAX!$E$5%)+TAX!$G$4)/12, IF(Data!#REF!<=TAX!$D$6,(((Data!#REF!-TAX!$D$5)*TAX!$E$6%)+TAX!$G$5)/12, IF(Data!#REF!<=TAX!$D$7,(((Data!#REF!-TAX!$D$6)*TAX!$E$7%)+TAX!$G$6)/12, IF(Data!#REF!<=TAX!$D$8,(((Data!#REF!-TAX!$D$7)*TAX!$E$8%)+TAX!$G$7)/12, IF(Data!#REF!>5000000,(((Data!#REF!-TAX!$D$8)*TAX!$E$9%)+TAX!$G$8)/12,"")))))))) -> 
U37: =IF(Data!#REF!<=TAX!$D$2,TAX!$E$2%, IF(Data!#REF!<=TAX!$D$3,((Data!#REF!-TAX!$D$2)*TAX!$E$3%)/12, IF(Data!#REF!<=TAX!$D$4,(((Data!#REF!-TAX!$D$3)*TAX!$E$4%)+TAX!$G$3)/12, IF(Data!#REF!<=TAX!$D$5,(((Data!#REF!-TAX!$D$4)*TAX!$E$5%)+TAX!$G$4)/12, IF(Data!#REF!<=TAX!$D$6,(((Data!#REF!-TAX!$D$5)*TAX!$E$6%)+TAX!$G$5)/12, IF(Data!#REF!<=TAX!$D$7,(((Data!#REF!-TAX!$D$6)*TAX!$E$7%)+TAX!$G$6)/12, IF(Data!#REF!<=TAX!$D$8,(((Data!#REF!-TAX!$D$7)*TAX!$E$8%)+TAX!$G$7)/12, IF(Data!#REF!>5000000,(((Data!#REF!-TAX!$D$8)*TAX!$E$9%)+TAX!$G$8)/12,"")))))))) -> 
U38: =IF(Data!#REF!<=TAX!$D$2,TAX!$E$2%, IF(Data!#REF!<=TAX!$D$3,((Data!#REF!-TAX!$D$2)*TAX!$E$3%)/12, IF(Data!#REF!<=TAX!$D$4,(((Data!#REF!-TAX!$D$3)*TAX!$E$4%)+TAX!$G$3)/12, IF(Data!#REF!<=TAX!$D$5,(((Data!#REF!-TAX!$D$4)*TAX!$E$5%)+TAX!$G$4)/12, IF(Data!#REF!<=TAX!$D$6,(((Data!#REF!-TAX!$D$5)*TAX!$E$6%)+TAX!$G$5)/12, IF(Data!#REF!<=TAX!$D$7,(((Data!#REF!-TAX!$D$6)*TAX!$E$7%)+TAX!$G$6)/12, IF(Data!#REF!<=TAX!$D$8,(((Data!#REF!-TAX!$D$7)*TAX!$E$8%)+TAX!$G$7)/12, IF(Data!#REF!>5000000,(((Data!#REF!-TAX!$D$8)*TAX!$E$9%)+TAX!$G$8)/12,"")))))))) -> 
U39: =IF(Data!#REF!<=TAX!$D$2,TAX!$E$2%, IF(Data!#REF!<=TAX!$D$3,((Data!#REF!-TAX!$D$2)*TAX!$E$3%)/12, IF(Data!#REF!<=TAX!$D$4,(((Data!#REF!-TAX!$D$3)*TAX!$E$4%)+TAX!$G$3)/12, IF(Data!#REF!<=TAX!$D$5,(((Data!#REF!-TAX!$D$4)*TAX!$E$5%)+TAX!$G$4)/12, IF(Data!#REF!<=TAX!$D$6,(((Data!#REF!-TAX!$D$5)*TAX!$E$6%)+TAX!$G$5)/12, IF(Data!#REF!<=TAX!$D$7,(((Data!#REF!-TAX!$D$6)*TAX!$E$7%)+TAX!$G$6)/12, IF(Data!#REF!<=TAX!$D$8,(((Data!#REF!-TAX!$D$7)*TAX!$E$8%)+TAX!$G$7)/12, IF(Data!#REF!>5000000,(((Data!#REF!-TAX!$D$8)*TAX!$E$9%)+TAX!$G$8)/12,"")))))))) -> 
U40: =IF(Data!#REF!<=TAX!$D$2,TAX!$E$2%, IF(Data!#REF!<=TAX!$D$3,((Data!#REF!-TAX!$D$2)*TAX!$E$3%)/12, IF(Data!#REF!<=TAX!$D$4,(((Data!#REF!-TAX!$D$3)*TAX!$E$4%)+TAX!$G$3)/12, IF(Data!#REF!<=TAX!$D$5,(((Data!#REF!-TAX!$D$4)*TAX!$E$5%)+TAX!$G$4)/12, IF(Data!#REF!<=TAX!$D$6,(((Data!#REF!-TAX!$D$5)*TAX!$E$6%)+TAX!$G$5)/12, IF(Data!#REF!<=TAX!$D$7,(((Data!#REF!-TAX!$D$6)*TAX!$E$7%)+TAX!$G$6)/12, IF(Data!#REF!<=TAX!$D$8,(((Data!#REF!-TAX!$D$7)*TAX!$E$8%)+TAX!$G$7)/12, IF(Data!#REF!>5000000,(((Data!#REF!-TAX!$D$8)*TAX!$E$9%)+TAX!$G$8)/12,"")))))))) -> 
U41: =IF(Data!#REF!<=TAX!$D$2,TAX!$E$2%, IF(Data!#REF!<=TAX!$D$3,((Data!#REF!-TAX!$D$2)*TAX!$E$3%)/12, IF(Data!#REF!<=TAX!$D$4,(((Data!#REF!-TAX!$D$3)*TAX!$E$4%)+TAX!$G$3)/12, IF(Data!#REF!<=TAX!$D$5,(((Data!#REF!-TAX!$D$4)*TAX!$E$5%)+TAX!$G$4)/12, IF(Data!#REF!<=TAX!$D$6,(((Data!#REF!-TAX!$D$5)*TAX!$E$6%)+TAX!$G$5)/12, IF(Data!#REF!<=TAX!$D$7,(((Data!#REF!-TAX!$D$6)*TAX!$E$7%)+TAX!$G$6)/12, IF(Data!#REF!<=TAX!$D$8,(((Data!#REF!-TAX!$D$7)*TAX!$E$8%)+TAX!$G$7)/12, IF(Data!#REF!>5000000,(((Data!#REF!-TAX!$D$8)*TAX!$E$9%)+TAX!$G$8)/12,"")))))))) -> 
U42: =IF(Data!#REF!<=TAX!$D$2,TAX!$E$2%, IF(Data!#REF!<=TAX!$D$3,((Data!#REF!-TAX!$D$2)*TAX!$E$3%)/12, IF(Data!#REF!<=TAX!$D$4,(((Data!#REF!-TAX!$D$3)*TAX!$E$4%)+TAX!$G$3)/12, IF(Data!#REF!<=TAX!$D$5,(((Data!#REF!-TAX!$D$4)*TAX!$E$5%)+TAX!$G$4)/12, IF(Data!#REF!<=TAX!$D$6,(((Data!#REF!-TAX!$D$5)*TAX!$E$6%)+TAX!$G$5)/12, IF(Data!#REF!<=TAX!$D$7,(((Data!#REF!-TAX!$D$6)*TAX!$E$7%)+TAX!$G$6)/12, IF(Data!#REF!<=TAX!$D$8,(((Data!#REF!-TAX!$D$7)*TAX!$E$8%)+TAX!$G$7)/12, IF(Data!#REF!>5000000,(((Data!#REF!-TAX!$D$8)*TAX!$E$9%)+TAX!$G$8)/12,"")))))))) -> 
U43: =IF(Data!#REF!<=TAX!$D$2,TAX!$E$2%, IF(Data!#REF!<=TAX!$D$3,((Data!#REF!-TAX!$D$2)*TAX!$E$3%)/12, IF(Data!#REF!<=TAX!$D$4,(((Data!#REF!-TAX!$D$3)*TAX!$E$4%)+TAX!$G$3)/12, IF(Data!#REF!<=TAX!$D$5,(((Data!#REF!-TAX!$D$4)*TAX!$E$5%)+TAX!$G$4)/12, IF(Data!#REF!<=TAX!$D$6,(((Data!#REF!-TAX!$D$5)*TAX!$E$6%)+TAX!$G$5)/12, IF(Data!#REF!<=TAX!$D$7,(((Data!#REF!-TAX!$D$6)*TAX!$E$7%)+TAX!$G$6)/12, IF(Data!#REF!<=TAX!$D$8,(((Data!#REF!-TAX!$D$7)*TAX!$E$8%)+TAX!$G$7)/12, IF(Data!#REF!>5000000,(((Data!#REF!-TAX!$D$8)*TAX!$E$9%)+TAX!$G$8)/12,"")))))))) -> 
U44: =IF(Data!#REF!<=TAX!$D$2,TAX!$E$2%, IF(Data!#REF!<=TAX!$D$3,((Data!#REF!-TAX!$D$2)*TAX!$E$3%)/12, IF(Data!#REF!<=TAX!$D$4,(((Data!#REF!-TAX!$D$3)*TAX!$E$4%)+TAX!$G$3)/12, IF(Data!#REF!<=TAX!$D$5,(((Data!#REF!-TAX!$D$4)*TAX!$E$5%)+TAX!$G$4)/12, IF(Data!#REF!<=TAX!$D$6,(((Data!#REF!-TAX!$D$5)*TAX!$E$6%)+TAX!$G$5)/12, IF(Data!#REF!<=TAX!$D$7,(((Data!#REF!-TAX!$D$6)*TAX!$E$7%)+TAX!$G$6)/12, IF(Data!#REF!<=TAX!$D$8,(((Data!#REF!-TAX!$D$7)*TAX!$E$8%)+TAX!$G$7)/12, IF(Data!#REF!>5000000,(((Data!#REF!-TAX!$D$8)*TAX!$E$9%)+TAX!$G$8)/12,"")))))))) -> 
U45: =IF(Data!#REF!<=TAX!$D$2,TAX!$E$2%, IF(Data!#REF!<=TAX!$D$3,((Data!#REF!-TAX!$D$2)*TAX!$E$3%)/12, IF(Data!#REF!<=TAX!$D$4,(((Data!#REF!-TAX!$D$3)*TAX!$E$4%)+TAX!$G$3)/12, IF(Data!#REF!<=TAX!$D$5,(((Data!#REF!-TAX!$D$4)*TAX!$E$5%)+TAX!$G$4)/12, IF(Data!#REF!<=TAX!$D$6,(((Data!#REF!-TAX!$D$5)*TAX!$E$6%)+TAX!$G$5)/12, IF(Data!#REF!<=TAX!$D$7,(((Data!#REF!-TAX!$D$6)*TAX!$E$7%)+TAX!$G$6)/12, IF(Data!#REF!<=TAX!$D$8,(((Data!#REF!-TAX!$D$7)*TAX!$E$8%)+TAX!$G$7)/12, IF(Data!#REF!>5000000,(((Data!#REF!-TAX!$D$8)*TAX!$E$9%)+TAX!$G$8)/12,"")))))))) -> 
U46: =IF(Data!#REF!<=TAX!$D$2,TAX!$E$2%, IF(Data!#REF!<=TAX!$D$3,((Data!#REF!-TAX!$D$2)*TAX!$E$3%)/12, IF(Data!#REF!<=TAX!$D$4,(((Data!#REF!-TAX!$D$3)*TAX!$E$4%)+TAX!$G$3)/12, IF(Data!#REF!<=TAX!$D$5,(((Data!#REF!-TAX!$D$4)*TAX!$E$5%)+TAX!$G$4)/12, IF(Data!#REF!<=TAX!$D$6,(((Data!#REF!-TAX!$D$5)*TAX!$E$6%)+TAX!$G$5)/12, IF(Data!#REF!<=TAX!$D$7,(((Data!#REF!-TAX!$D$6)*TAX!$E$7%)+TAX!$G$6)/12, IF(Data!#REF!<=TAX!$D$8,(((Data!#REF!-TAX!$D$7)*TAX!$E$8%)+TAX!$G$7)/12, IF(Data!#REF!>5000000,(((Data!#REF!-TAX!$D$8)*TAX!$E$9%)+TAX!$G$8)/12,"")))))))) -> 
U47: =IF(Data!#REF!<=TAX!$D$2,TAX!$E$2%, IF(Data!#REF!<=TAX!$D$3,((Data!#REF!-TAX!$D$2)*TAX!$E$3%)/12, IF(Data!#REF!<=TAX!$D$4,(((Data!#REF!-TAX!$D$3)*TAX!$E$4%)+TAX!$G$3)/12, IF(Data!#REF!<=TAX!$D$5,(((Data!#REF!-TAX!$D$4)*TAX!$E$5%)+TAX!$G$4)/12, IF(Data!#REF!<=TAX!$D$6,(((Data!#REF!-TAX!$D$5)*TAX!$E$6%)+TAX!$G$5)/12, IF(Data!#REF!<=TAX!$D$7,(((Data!#REF!-TAX!$D$6)*TAX!$E$7%)+TAX!$G$6)/12, IF(Data!#REF!<=TAX!$D$8,(((Data!#REF!-TAX!$D$7)*TAX!$E$8%)+TAX!$G$7)/12, IF(Data!#REF!>5000000,(((Data!#REF!-TAX!$D$8)*TAX!$E$9%)+TAX!$G$8)/12,"")))))))) -> 
U48: =IF(Data!#REF!<=TAX!$D$2,TAX!$E$2%, IF(Data!#REF!<=TAX!$D$3,((Data!#REF!-TAX!$D$2)*TAX!$E$3%)/12, IF(Data!#REF!<=TAX!$D$4,(((Data!#REF!-TAX!$D$3)*TAX!$E$4%)+TAX!$G$3)/12, IF(Data!#REF!<=TAX!$D$5,(((Data!#REF!-TAX!$D$4)*TAX!$E$5%)+TAX!$G$4)/12, IF(Data!#REF!<=TAX!$D$6,(((Data!#REF!-TAX!$D$5)*TAX!$E$6%)+TAX!$G$5)/12, IF(Data!#REF!<=TAX!$D$7,(((Data!#REF!-TAX!$D$6)*TAX!$E$7%)+TAX!$G$6)/12, IF(Data!#REF!<=TAX!$D$8,(((Data!#REF!-TAX!$D$7)*TAX!$E$8%)+TAX!$G$7)/12, IF(Data!#REF!>5000000,(((Data!#REF!-TAX!$D$8)*TAX!$E$9%)+TAX!$G$8)/12,"")))))))) -> 
U49: =IF(Data!#REF!<=TAX!$D$2,TAX!$E$2%, IF(Data!#REF!<=TAX!$D$3,((Data!#REF!-TAX!$D$2)*TAX!$E$3%)/12, IF(Data!#REF!<=TAX!$D$4,(((Data!#REF!-TAX!$D$3)*TAX!$E$4%)+TAX!$G$3)/12, IF(Data!#REF!<=TAX!$D$5,(((Data!#REF!-TAX!$D$4)*TAX!$E$5%)+TAX!$G$4)/12, IF(Data!#REF!<=TAX!$D$6,(((Data!#REF!-TAX!$D$5)*TAX!$E$6%)+TAX!$G$5)/12, IF(Data!#REF!<=TAX!$D$7,(((Data!#REF!-TAX!$D$6)*TAX!$E$7%)+TAX!$G$6)/12, IF(Data!#REF!<=TAX!$D$8,(((Data!#REF!-TAX!$D$7)*TAX!$E$8%)+TAX!$G$7)/12, IF(Data!#REF!>5000000,(((Data!#REF!-TAX!$D$8)*TAX!$E$9%)+TAX!$G$8)/12,"")))))))) -> 
U50: =IF(Data!#REF!<=TAX!$D$2,TAX!$E$2%, IF(Data!#REF!<=TAX!$D$3,((Data!#REF!-TAX!$D$2)*TAX!$E$3%)/12, IF(Data!#REF!<=TAX!$D$4,(((Data!#REF!-TAX!$D$3)*TAX!$E$4%)+TAX!$G$3)/12, IF(Data!#REF!<=TAX!$D$5,(((Data!#REF!-TAX!$D$4)*TAX!$E$5%)+TAX!$G$4)/12, IF(Data!#REF!<=TAX!$D$6,(((Data!#REF!-TAX!$D$5)*TAX!$E$6%)+TAX!$G$5)/12, IF(Data!#REF!<=TAX!$D$7,(((Data!#REF!-TAX!$D$6)*TAX!$E$7%)+TAX!$G$6)/12, IF(Data!#REF!<=TAX!$D$8,(((Data!#REF!-TAX!$D$7)*TAX!$E$8%)+TAX!$G$7)/12, IF(Data!#REF!>5000000,(((Data!#REF!-TAX!$D$8)*TAX!$E$9%)+TAX!$G$8)/12,"")))))))) -> 
U51: =IF(Data!#REF!<=TAX!$D$2,TAX!$E$2%, IF(Data!#REF!<=TAX!$D$3,((Data!#REF!-TAX!$D$2)*TAX!$E$3%)/12, IF(Data!#REF!<=TAX!$D$4,(((Data!#REF!-TAX!$D$3)*TAX!$E$4%)+TAX!$G$3)/12, IF(Data!#REF!<=TAX!$D$5,(((Data!#REF!-TAX!$D$4)*TAX!$E$5%)+TAX!$G$4)/12, IF(Data!#REF!<=TAX!$D$6,(((Data!#REF!-TAX!$D$5)*TAX!$E$6%)+TAX!$G$5)/12, IF(Data!#REF!<=TAX!$D$7,(((Data!#REF!-TAX!$D$6)*TAX!$E$7%)+TAX!$G$6)/12, IF(Data!#REF!<=TAX!$D$8,(((Data!#REF!-TAX!$D$7)*TAX!$E$8%)+TAX!$G$7)/12, IF(Data!#REF!>5000000,(((Data!#REF!-TAX!$D$8)*TAX!$E$9%)+TAX!$G$8)/12,"")))))))) -> 
U52: =IF(Data!#REF!<=TAX!$D$2,TAX!$E$2%, IF(Data!#REF!<=TAX!$D$3,((Data!#REF!-TAX!$D$2)*TAX!$E$3%)/12, IF(Data!#REF!<=TAX!$D$4,(((Data!#REF!-TAX!$D$3)*TAX!$E$4%)+TAX!$G$3)/12, IF(Data!#REF!<=TAX!$D$5,(((Data!#REF!-TAX!$D$4)*TAX!$E$5%)+TAX!$G$4)/12, IF(Data!#REF!<=TAX!$D$6,(((Data!#REF!-TAX!$D$5)*TAX!$E$6%)+TAX!$G$5)/12, IF(Data!#REF!<=TAX!$D$7,(((Data!#REF!-TAX!$D$6)*TAX!$E$7%)+TAX!$G$6)/12, IF(Data!#REF!<=TAX!$D$8,(((Data!#REF!-TAX!$D$7)*TAX!$E$8%)+TAX!$G$7)/12, IF(Data!#REF!>5000000,(((Data!#REF!-TAX!$D$8)*TAX!$E$9%)+TAX!$G$8)/12,"")))))))) -> 
U53: =IF(Data!#REF!<=TAX!$D$2,TAX!$E$2%, IF(Data!#REF!<=TAX!$D$3,((Data!#REF!-TAX!$D$2)*TAX!$E$3%)/12, IF(Data!#REF!<=TAX!$D$4,(((Data!#REF!-TAX!$D$3)*TAX!$E$4%)+TAX!$G$3)/12, IF(Data!#REF!<=TAX!$D$5,(((Data!#REF!-TAX!$D$4)*TAX!$E$5%)+TAX!$G$4)/12, IF(Data!#REF!<=TAX!$D$6,(((Data!#REF!-TAX!$D$5)*TAX!$E$6%)+TAX!$G$5)/12, IF(Data!#REF!<=TAX!$D$7,(((Data!#REF!-TAX!$D$6)*TAX!$E$7%)+TAX!$G$6)/12, IF(Data!#REF!<=TAX!$D$8,(((Data!#REF!-TAX!$D$7)*TAX!$E$8%)+TAX!$G$7)/12, IF(Data!#REF!>5000000,(((Data!#REF!-TAX!$D$8)*TAX!$E$9%)+TAX!$G$8)/12,"")))))))) -> 
U54: =IF(Data!#REF!<=TAX!$D$2,TAX!$E$2%, IF(Data!#REF!<=TAX!$D$3,((Data!#REF!-TAX!$D$2)*TAX!$E$3%)/12, IF(Data!#REF!<=TAX!$D$4,(((Data!#REF!-TAX!$D$3)*TAX!$E$4%)+TAX!$G$3)/12, IF(Data!#REF!<=TAX!$D$5,(((Data!#REF!-TAX!$D$4)*TAX!$E$5%)+TAX!$G$4)/12, IF(Data!#REF!<=TAX!$D$6,(((Data!#REF!-TAX!$D$5)*TAX!$E$6%)+TAX!$G$5)/12, IF(Data!#REF!<=TAX!$D$7,(((Data!#REF!-TAX!$D$6)*TAX!$E$7%)+TAX!$G$6)/12, IF(Data!#REF!<=TAX!$D$8,(((Data!#REF!-TAX!$D$7)*TAX!$E$8%)+TAX!$G$7)/12, IF(Data!#REF!>5000000,(((Data!#REF!-TAX!$D$8)*TAX!$E$9%)+TAX!$G$8)/12,"")))))))) -> 
U55: =IF(Data!#REF!<=TAX!$D$2,TAX!$E$2%, IF(Data!#REF!<=TAX!$D$3,((Data!#REF!-TAX!$D$2)*TAX!$E$3%)/12, IF(Data!#REF!<=TAX!$D$4,(((Data!#REF!-TAX!$D$3)*TAX!$E$4%)+TAX!$G$3)/12, IF(Data!#REF!<=TAX!$D$5,(((Data!#REF!-TAX!$D$4)*TAX!$E$5%)+TAX!$G$4)/12, IF(Data!#REF!<=TAX!$D$6,(((Data!#REF!-TAX!$D$5)*TAX!$E$6%)+TAX!$G$5)/12, IF(Data!#REF!<=TAX!$D$7,(((Data!#REF!-TAX!$D$6)*TAX!$E$7%)+TAX!$G$6)/12, IF(Data!#REF!<=TAX!$D$8,(((Data!#REF!-TAX!$D$7)*TAX!$E$8%)+TAX!$G$7)/12, IF(Data!#REF!>5000000,(((Data!#REF!-TAX!$D$8)*TAX!$E$9%)+TAX!$G$8)/12,"")))))))) -> 
U56: =IF(Data!#REF!<=TAX!$D$2,TAX!$E$2%, IF(Data!#REF!<=TAX!$D$3,((Data!#REF!-TAX!$D$2)*TAX!$E$3%)/12, IF(Data!#REF!<=TAX!$D$4,(((Data!#REF!-TAX!$D$3)*TAX!$E$4%)+TAX!$G$3)/12, IF(Data!#REF!<=TAX!$D$5,(((Data!#REF!-TAX!$D$4)*TAX!$E$5%)+TAX!$G$4)/12, IF(Data!#REF!<=TAX!$D$6,(((Data!#REF!-TAX!$D$5)*TAX!$E$6%)+TAX!$G$5)/12, IF(Data!#REF!<=TAX!$D$7,(((Data!#REF!-TAX!$D$6)*TAX!$E$7%)+TAX!$G$6)/12, IF(Data!#REF!<=TAX!$D$8,(((Data!#REF!-TAX!$D$7)*TAX!$E$8%)+TAX!$G$7)/12, IF(Data!#REF!>5000000,(((Data!#REF!-TAX!$D$8)*TAX!$E$9%)+TAX!$G$8)/12,"")))))))) -> 
U57: =IF(Data!#REF!<=TAX!$D$2,TAX!$E$2%, IF(Data!#REF!<=TAX!$D$3,((Data!#REF!-TAX!$D$2)*TAX!$E$3%)/12, IF(Data!#REF!<=TAX!$D$4,(((Data!#REF!-TAX!$D$3)*TAX!$E$4%)+TAX!$G$3)/12, IF(Data!#REF!<=TAX!$D$5,(((Data!#REF!-TAX!$D$4)*TAX!$E$5%)+TAX!$G$4)/12, IF(Data!#REF!<=TAX!$D$6,(((Data!#REF!-TAX!$D$5)*TAX!$E$6%)+TAX!$G$5)/12, IF(Data!#REF!<=TAX!$D$7,(((Data!#REF!-TAX!$D$6)*TAX!$E$7%)+TAX!$G$6)/12, IF(Data!#REF!<=TAX!$D$8,(((Data!#REF!-TAX!$D$7)*TAX!$E$8%)+TAX!$G$7)/12, IF(Data!#REF!>5000000,(((Data!#REF!-TAX!$D$8)*TAX!$E$9%)+TAX!$G$8)/12,"")))))))) -> 
U58: =IF(Data!#REF!<=TAX!$D$2,TAX!$E$2%, IF(Data!#REF!<=TAX!$D$3,((Data!#REF!-TAX!$D$2)*TAX!$E$3%)/12, IF(Data!#REF!<=TAX!$D$4,(((Data!#REF!-TAX!$D$3)*TAX!$E$4%)+TAX!$G$3)/12, IF(Data!#REF!<=TAX!$D$5,(((Data!#REF!-TAX!$D$4)*TAX!$E$5%)+TAX!$G$4)/12, IF(Data!#REF!<=TAX!$D$6,(((Data!#REF!-TAX!$D$5)*TAX!$E$6%)+TAX!$G$5)/12, IF(Data!#REF!<=TAX!$D$7,(((Data!#REF!-TAX!$D$6)*TAX!$E$7%)+TAX!$G$6)/12, IF(Data!#REF!<=TAX!$D$8,(((Data!#REF!-TAX!$D$7)*TAX!$E$8%)+TAX!$G$7)/12, IF(Data!#REF!>5000000,(((Data!#REF!-TAX!$D$8)*TAX!$E$9%)+TAX!$G$8)/12,"")))))))) -> 
U59: =IF(Data!#REF!<=TAX!$D$2,TAX!$E$2%, IF(Data!#REF!<=TAX!$D$3,((Data!#REF!-TAX!$D$2)*TAX!$E$3%)/12, IF(Data!#REF!<=TAX!$D$4,(((Data!#REF!-TAX!$D$3)*TAX!$E$4%)+TAX!$G$3)/12, IF(Data!#REF!<=TAX!$D$5,(((Data!#REF!-TAX!$D$4)*TAX!$E$5%)+TAX!$G$4)/12, IF(Data!#REF!<=TAX!$D$6,(((Data!#REF!-TAX!$D$5)*TAX!$E$6%)+TAX!$G$5)/12, IF(Data!#REF!<=TAX!$D$7,(((Data!#REF!-TAX!$D$6)*TAX!$E$7%)+TAX!$G$6)/12, IF(Data!#REF!<=TAX!$D$8,(((Data!#REF!-TAX!$D$7)*TAX!$E$8%)+TAX!$G$7)/12, IF(Data!#REF!>5000000,(((Data!#REF!-TAX!$D$8)*TAX!$E$9%)+TAX!$G$8)/12,"")))))))) -> 
U60: =IF(Data!#REF!<=TAX!$D$2,TAX!$E$2%, IF(Data!#REF!<=TAX!$D$3,((Data!#REF!-TAX!$D$2)*TAX!$E$3%)/12, IF(Data!#REF!<=TAX!$D$4,(((Data!#REF!-TAX!$D$3)*TAX!$E$4%)+TAX!$G$3)/12, IF(Data!#REF!<=TAX!$D$5,(((Data!#REF!-TAX!$D$4)*TAX!$E$5%)+TAX!$G$4)/12, IF(Data!#REF!<=TAX!$D$6,(((Data!#REF!-TAX!$D$5)*TAX!$E$6%)+TAX!$G$5)/12, IF(Data!#REF!<=TAX!$D$7,(((Data!#REF!-TAX!$D$6)*TAX!$E$7%)+TAX!$G$6)/12, IF(Data!#REF!<=TAX!$D$8,(((Data!#REF!-TAX!$D$7)*TAX!$E$8%)+TAX!$G$7)/12, IF(Data!#REF!>5000000,(((Data!#REF!-TAX!$D$8)*TAX!$E$9%)+TAX!$G$8)/12,"")))))))) -> 
U61: =IF(Data!#REF!<=TAX!$D$2,TAX!$E$2%, IF(Data!#REF!<=TAX!$D$3,((Data!#REF!-TAX!$D$2)*TAX!$E$3%)/12, IF(Data!#REF!<=TAX!$D$4,(((Data!#REF!-TAX!$D$3)*TAX!$E$4%)+TAX!$G$3)/12, IF(Data!#REF!<=TAX!$D$5,(((Data!#REF!-TAX!$D$4)*TAX!$E$5%)+TAX!$G$4)/12, IF(Data!#REF!<=TAX!$D$6,(((Data!#REF!-TAX!$D$5)*TAX!$E$6%)+TAX!$G$5)/12, IF(Data!#REF!<=TAX!$D$7,(((Data!#REF!-TAX!$D$6)*TAX!$E$7%)+TAX!$G$6)/12, IF(Data!#REF!<=TAX!$D$8,(((Data!#REF!-TAX!$D$7)*TAX!$E$8%)+TAX!$G$7)/12, IF(Data!#REF!>5000000,(((Data!#REF!-TAX!$D$8)*TAX!$E$9%)+TAX!$G$8)/12,"")))))))) -> 
U62: =IF(Data!#REF!<=TAX!$D$2,TAX!$E$2%, IF(Data!#REF!<=TAX!$D$3,((Data!#REF!-TAX!$D$2)*TAX!$E$3%)/12, IF(Data!#REF!<=TAX!$D$4,(((Data!#REF!-TAX!$D$3)*TAX!$E$4%)+TAX!$G$3)/12, IF(Data!#REF!<=TAX!$D$5,(((Data!#REF!-TAX!$D$4)*TAX!$E$5%)+TAX!$G$4)/12, IF(Data!#REF!<=TAX!$D$6,(((Data!#REF!-TAX!$D$5)*TAX!$E$6%)+TAX!$G$5)/12, IF(Data!#REF!<=TAX!$D$7,(((Data!#REF!-TAX!$D$6)*TAX!$E$7%)+TAX!$G$6)/12, IF(Data!#REF!<=TAX!$D$8,(((Data!#REF!-TAX!$D$7)*TAX!$E$8%)+TAX!$G$7)/12, IF(Data!#REF!>5000000,(((Data!#REF!-TAX!$D$8)*TAX!$E$9%)+TAX!$G$8)/12,"")))))))) -> 
U63: =IF(Data!#REF!<=TAX!$D$2,TAX!$E$2%, IF(Data!#REF!<=TAX!$D$3,((Data!#REF!-TAX!$D$2)*TAX!$E$3%)/12, IF(Data!#REF!<=TAX!$D$4,(((Data!#REF!-TAX!$D$3)*TAX!$E$4%)+TAX!$G$3)/12, IF(Data!#REF!<=TAX!$D$5,(((Data!#REF!-TAX!$D$4)*TAX!$E$5%)+TAX!$G$4)/12, IF(Data!#REF!<=TAX!$D$6,(((Data!#REF!-TAX!$D$5)*TAX!$E$6%)+TAX!$G$5)/12, IF(Data!#REF!<=TAX!$D$7,(((Data!#REF!-TAX!$D$6)*TAX!$E$7%)+TAX!$G$6)/12, IF(Data!#REF!<=TAX!$D$8,(((Data!#REF!-TAX!$D$7)*TAX!$E$8%)+TAX!$G$7)/12, IF(Data!#REF!>5000000,(((Data!#REF!-TAX!$D$8)*TAX!$E$9%)+TAX!$G$8)/12,"")))))))) -> 
U64: =IF(Data!#REF!<=TAX!$D$2,TAX!$E$2%, IF(Data!#REF!<=TAX!$D$3,((Data!#REF!-TAX!$D$2)*TAX!$E$3%)/12, IF(Data!#REF!<=TAX!$D$4,(((Data!#REF!-TAX!$D$3)*TAX!$E$4%)+TAX!$G$3)/12, IF(Data!#REF!<=TAX!$D$5,(((Data!#REF!-TAX!$D$4)*TAX!$E$5%)+TAX!$G$4)/12, IF(Data!#REF!<=TAX!$D$6,(((Data!#REF!-TAX!$D$5)*TAX!$E$6%)+TAX!$G$5)/12, IF(Data!#REF!<=TAX!$D$7,(((Data!#REF!-TAX!$D$6)*TAX!$E$7%)+TAX!$G$6)/12, IF(Data!#REF!<=TAX!$D$8,(((Data!#REF!-TAX!$D$7)*TAX!$E$8%)+TAX!$G$7)/12, IF(Data!#REF!>5000000,(((Data!#REF!-TAX!$D$8)*TAX!$E$9%)+TAX!$G$8)/12,"")))))))) -> 
U65: =IF(Data!#REF!<=TAX!$D$2,TAX!$E$2%, IF(Data!#REF!<=TAX!$D$3,((Data!#REF!-TAX!$D$2)*TAX!$E$3%)/12, IF(Data!#REF!<=TAX!$D$4,(((Data!#REF!-TAX!$D$3)*TAX!$E$4%)+TAX!$G$3)/12, IF(Data!#REF!<=TAX!$D$5,(((Data!#REF!-TAX!$D$4)*TAX!$E$5%)+TAX!$G$4)/12, IF(Data!#REF!<=TAX!$D$6,(((Data!#REF!-TAX!$D$5)*TAX!$E$6%)+TAX!$G$5)/12, IF(Data!#REF!<=TAX!$D$7,(((Data!#REF!-TAX!$D$6)*TAX!$E$7%)+TAX!$G$6)/12, IF(Data!#REF!<=TAX!$D$8,(((Data!#REF!-TAX!$D$7)*TAX!$E$8%)+TAX!$G$7)/12, IF(Data!#REF!>5000000,(((Data!#REF!-TAX!$D$8)*TAX!$E$9%)+TAX!$G$8)/12,"")))))))) -> 
U66: =IF(Data!#REF!<=TAX!$D$2,TAX!$E$2%, IF(Data!#REF!<=TAX!$D$3,((Data!#REF!-TAX!$D$2)*TAX!$E$3%)/12, IF(Data!#REF!<=TAX!$D$4,(((Data!#REF!-TAX!$D$3)*TAX!$E$4%)+TAX!$G$3)/12, IF(Data!#REF!<=TAX!$D$5,(((Data!#REF!-TAX!$D$4)*TAX!$E$5%)+TAX!$G$4)/12, IF(Data!#REF!<=TAX!$D$6,(((Data!#REF!-TAX!$D$5)*TAX!$E$6%)+TAX!$G$5)/12, IF(Data!#REF!<=TAX!$D$7,(((Data!#REF!-TAX!$D$6)*TAX!$E$7%)+TAX!$G$6)/12, IF(Data!#REF!<=TAX!$D$8,(((Data!#REF!-TAX!$D$7)*TAX!$E$8%)+TAX!$G$7)/12, IF(Data!#REF!>5000000,(((Data!#REF!-TAX!$D$8)*TAX!$E$9%)+TAX!$G$8)/12,"")))))))) -> 
U67: =IF(Data!#REF!<=TAX!$D$2,TAX!$E$2%, IF(Data!#REF!<=TAX!$D$3,((Data!#REF!-TAX!$D$2)*TAX!$E$3%)/12, IF(Data!#REF!<=TAX!$D$4,(((Data!#REF!-TAX!$D$3)*TAX!$E$4%)+TAX!$G$3)/12, IF(Data!#REF!<=TAX!$D$5,(((Data!#REF!-TAX!$D$4)*TAX!$E$5%)+TAX!$G$4)/12, IF(Data!#REF!<=TAX!$D$6,(((Data!#REF!-TAX!$D$5)*TAX!$E$6%)+TAX!$G$5)/12, IF(Data!#REF!<=TAX!$D$7,(((Data!#REF!-TAX!$D$6)*TAX!$E$7%)+TAX!$G$6)/12, IF(Data!#REF!<=TAX!$D$8,(((Data!#REF!-TAX!$D$7)*TAX!$E$8%)+TAX!$G$7)/12, IF(Data!#REF!>5000000,(((Data!#REF!-TAX!$D$8)*TAX!$E$9%)+TAX!$G$8)/12,"")))))))) -> 
U68: =IF(Data!#REF!<=TAX!$D$2,TAX!$E$2%, IF(Data!#REF!<=TAX!$D$3,((Data!#REF!-TAX!$D$2)*TAX!$E$3%)/12, IF(Data!#REF!<=TAX!$D$4,(((Data!#REF!-TAX!$D$3)*TAX!$E$4%)+TAX!$G$3)/12, IF(Data!#REF!<=TAX!$D$5,(((Data!#REF!-TAX!$D$4)*TAX!$E$5%)+TAX!$G$4)/12, IF(Data!#REF!<=TAX!$D$6,(((Data!#REF!-TAX!$D$5)*TAX!$E$6%)+TAX!$G$5)/12, IF(Data!#REF!<=TAX!$D$7,(((Data!#REF!-TAX!$D$6)*TAX!$E$7%)+TAX!$G$6)/12, IF(Data!#REF!<=TAX!$D$8,(((Data!#REF!-TAX!$D$7)*TAX!$E$8%)+TAX!$G$7)/12, IF(Data!#REF!>5000000,(((Data!#REF!-TAX!$D$8)*TAX!$E$9%)+TAX!$G$8)/12,"")))))))) -> 
U69: =IF(Data!#REF!<=TAX!$D$2,TAX!$E$2%, IF(Data!#REF!<=TAX!$D$3,((Data!#REF!-TAX!$D$2)*TAX!$E$3%)/12, IF(Data!#REF!<=TAX!$D$4,(((Data!#REF!-TAX!$D$3)*TAX!$E$4%)+TAX!$G$3)/12, IF(Data!#REF!<=TAX!$D$5,(((Data!#REF!-TAX!$D$4)*TAX!$E$5%)+TAX!$G$4)/12, IF(Data!#REF!<=TAX!$D$6,(((Data!#REF!-TAX!$D$5)*TAX!$E$6%)+TAX!$G$5)/12, IF(Data!#REF!<=TAX!$D$7,(((Data!#REF!-TAX!$D$6)*TAX!$E$7%)+TAX!$G$6)/12, IF(Data!#REF!<=TAX!$D$8,(((Data!#REF!-TAX!$D$7)*TAX!$E$8%)+TAX!$G$7)/12, IF(Data!#REF!>5000000,(((Data!#REF!-TAX!$D$8)*TAX!$E$9%)+TAX!$G$8)/12,"")))))))) -> 
U70: =IF(Data!#REF!<=TAX!$D$2,TAX!$E$2%, IF(Data!#REF!<=TAX!$D$3,((Data!#REF!-TAX!$D$2)*TAX!$E$3%)/12, IF(Data!#REF!<=TAX!$D$4,(((Data!#REF!-TAX!$D$3)*TAX!$E$4%)+TAX!$G$3)/12, IF(Data!#REF!<=TAX!$D$5,(((Data!#REF!-TAX!$D$4)*TAX!$E$5%)+TAX!$G$4)/12, IF(Data!#REF!<=TAX!$D$6,(((Data!#REF!-TAX!$D$5)*TAX!$E$6%)+TAX!$G$5)/12, IF(Data!#REF!<=TAX!$D$7,(((Data!#REF!-TAX!$D$6)*TAX!$E$7%)+TAX!$G$6)/12, IF(Data!#REF!<=TAX!$D$8,(((Data!#REF!-TAX!$D$7)*TAX!$E$8%)+TAX!$G$7)/12, IF(Data!#REF!>5000000,(((Data!#REF!-TAX!$D$8)*TAX!$E$9%)+TAX!$G$8)/12,"")))))))) -> 
U71: =IF(Data!#REF!<=TAX!$D$2,TAX!$E$2%, IF(Data!#REF!<=TAX!$D$3,((Data!#REF!-TAX!$D$2)*TAX!$E$3%)/12, IF(Data!#REF!<=TAX!$D$4,(((Data!#REF!-TAX!$D$3)*TAX!$E$4%)+TAX!$G$3)/12, IF(Data!#REF!<=TAX!$D$5,(((Data!#REF!-TAX!$D$4)*TAX!$E$5%)+TAX!$G$4)/12, IF(Data!#REF!<=TAX!$D$6,(((Data!#REF!-TAX!$D$5)*TAX!$E$6%)+TAX!$G$5)/12, IF(Data!#REF!<=TAX!$D$7,(((Data!#REF!-TAX!$D$6)*TAX!$E$7%)+TAX!$G$6)/12, IF(Data!#REF!<=TAX!$D$8,(((Data!#REF!-TAX!$D$7)*TAX!$E$8%)+TAX!$G$7)/12, IF(Data!#REF!>5000000,(((Data!#REF!-TAX!$D$8)*TAX!$E$9%)+TAX!$G$8)/12,"")))))))) -> 
U72: =IF(Data!#REF!<=TAX!$D$2,TAX!$E$2%, IF(Data!#REF!<=TAX!$D$3,((Data!#REF!-TAX!$D$2)*TAX!$E$3%)/12, IF(Data!#REF!<=TAX!$D$4,(((Data!#REF!-TAX!$D$3)*TAX!$E$4%)+TAX!$G$3)/12, IF(Data!#REF!<=TAX!$D$5,(((Data!#REF!-TAX!$D$4)*TAX!$E$5%)+TAX!$G$4)/12, IF(Data!#REF!<=TAX!$D$6,(((Data!#REF!-TAX!$D$5)*TAX!$E$6%)+TAX!$G$5)/12, IF(Data!#REF!<=TAX!$D$7,(((Data!#REF!-TAX!$D$6)*TAX!$E$7%)+TAX!$G$6)/12, IF(Data!#REF!<=TAX!$D$8,(((Data!#REF!-TAX!$D$7)*TAX!$E$8%)+TAX!$G$7)/12, IF(Data!#REF!>5000000,(((Data!#REF!-TAX!$D$8)*TAX!$E$9%)+TAX!$G$8)/12,"")))))))) -> 
U73: =IF(Data!#REF!<=TAX!$D$2,TAX!$E$2%, IF(Data!#REF!<=TAX!$D$3,((Data!#REF!-TAX!$D$2)*TAX!$E$3%)/12, IF(Data!#REF!<=TAX!$D$4,(((Data!#REF!-TAX!$D$3)*TAX!$E$4%)+TAX!$G$3)/12, IF(Data!#REF!<=TAX!$D$5,(((Data!#REF!-TAX!$D$4)*TAX!$E$5%)+TAX!$G$4)/12, IF(Data!#REF!<=TAX!$D$6,(((Data!#REF!-TAX!$D$5)*TAX!$E$6%)+TAX!$G$5)/12, IF(Data!#REF!<=TAX!$D$7,(((Data!#REF!-TAX!$D$6)*TAX!$E$7%)+TAX!$G$6)/12, IF(Data!#REF!<=TAX!$D$8,(((Data!#REF!-TAX!$D$7)*TAX!$E$8%)+TAX!$G$7)/12, IF(Data!#REF!>5000000,(((Data!#REF!-TAX!$D$8)*TAX!$E$9%)+TAX!$G$8)/12,"")))))))) -> 
U74: =IF(Data!#REF!<=TAX!$D$2,TAX!$E$2%, IF(Data!#REF!<=TAX!$D$3,((Data!#REF!-TAX!$D$2)*TAX!$E$3%)/12, IF(Data!#REF!<=TAX!$D$4,(((Data!#REF!-TAX!$D$3)*TAX!$E$4%)+TAX!$G$3)/12, IF(Data!#REF!<=TAX!$D$5,(((Data!#REF!-TAX!$D$4)*TAX!$E$5%)+TAX!$G$4)/12, IF(Data!#REF!<=TAX!$D$6,(((Data!#REF!-TAX!$D$5)*TAX!$E$6%)+TAX!$G$5)/12, IF(Data!#REF!<=TAX!$D$7,(((Data!#REF!-TAX!$D$6)*TAX!$E$7%)+TAX!$G$6)/12, IF(Data!#REF!<=TAX!$D$8,(((Data!#REF!-TAX!$D$7)*TAX!$E$8%)+TAX!$G$7)/12, IF(Data!#REF!>5000000,(((Data!#REF!-TAX!$D$8)*TAX!$E$9%)+TAX!$G$8)/12,"")))))))) -> 
U75: =IF(Data!#REF!<=TAX!$D$2,TAX!$E$2%, IF(Data!#REF!<=TAX!$D$3,((Data!#REF!-TAX!$D$2)*TAX!$E$3%)/12, IF(Data!#REF!<=TAX!$D$4,(((Data!#REF!-TAX!$D$3)*TAX!$E$4%)+TAX!$G$3)/12, IF(Data!#REF!<=TAX!$D$5,(((Data!#REF!-TAX!$D$4)*TAX!$E$5%)+TAX!$G$4)/12, IF(Data!#REF!<=TAX!$D$6,(((Data!#REF!-TAX!$D$5)*TAX!$E$6%)+TAX!$G$5)/12, IF(Data!#REF!<=TAX!$D$7,(((Data!#REF!-TAX!$D$6)*TAX!$E$7%)+TAX!$G$6)/12, IF(Data!#REF!<=TAX!$D$8,(((Data!#REF!-TAX!$D$7)*TAX!$E$8%)+TAX!$G$7)/12, IF(Data!#REF!>5000000,(((Data!#REF!-TAX!$D$8)*TAX!$E$9%)+TAX!$G$8)/12,"")))))))) -> 
U76: =IF(Data!#REF!<=TAX!$D$2,TAX!$E$2%, IF(Data!#REF!<=TAX!$D$3,((Data!#REF!-TAX!$D$2)*TAX!$E$3%)/12, IF(Data!#REF!<=TAX!$D$4,(((Data!#REF!-TAX!$D$3)*TAX!$E$4%)+TAX!$G$3)/12, IF(Data!#REF!<=TAX!$D$5,(((Data!#REF!-TAX!$D$4)*TAX!$E$5%)+TAX!$G$4)/12, IF(Data!#REF!<=TAX!$D$6,(((Data!#REF!-TAX!$D$5)*TAX!$E$6%)+TAX!$G$5)/12, IF(Data!#REF!<=TAX!$D$7,(((Data!#REF!-TAX!$D$6)*TAX!$E$7%)+TAX!$G$6)/12, IF(Data!#REF!<=TAX!$D$8,(((Data!#REF!-TAX!$D$7)*TAX!$E$8%)+TAX!$G$7)/12, IF(Data!#REF!>5000000,(((Data!#REF!-TAX!$D$8)*TAX!$E$9%)+TAX!$G$8)/12,"")))))))) -> 
U77: =IF(Data!#REF!<=TAX!$D$2,TAX!$E$2%, IF(Data!#REF!<=TAX!$D$3,((Data!#REF!-TAX!$D$2)*TAX!$E$3%)/12, IF(Data!#REF!<=TAX!$D$4,(((Data!#REF!-TAX!$D$3)*TAX!$E$4%)+TAX!$G$3)/12, IF(Data!#REF!<=TAX!$D$5,(((Data!#REF!-TAX!$D$4)*TAX!$E$5%)+TAX!$G$4)/12, IF(Data!#REF!<=TAX!$D$6,(((Data!#REF!-TAX!$D$5)*TAX!$E$6%)+TAX!$G$5)/12, IF(Data!#REF!<=TAX!$D$7,(((Data!#REF!-TAX!$D$6)*TAX!$E$7%)+TAX!$G$6)/12, IF(Data!#REF!<=TAX!$D$8,(((Data!#REF!-TAX!$D$7)*TAX!$E$8%)+TAX!$G$7)/12, IF(Data!#REF!>5000000,(((Data!#REF!-TAX!$D$8)*TAX!$E$9%)+TAX!$G$8)/12,"")))))))) -> 
U78: =IF(Data!#REF!<=TAX!$D$2,TAX!$E$2%, IF(Data!#REF!<=TAX!$D$3,((Data!#REF!-TAX!$D$2)*TAX!$E$3%)/12, IF(Data!#REF!<=TAX!$D$4,(((Data!#REF!-TAX!$D$3)*TAX!$E$4%)+TAX!$G$3)/12, IF(Data!#REF!<=TAX!$D$5,(((Data!#REF!-TAX!$D$4)*TAX!$E$5%)+TAX!$G$4)/12, IF(Data!#REF!<=TAX!$D$6,(((Data!#REF!-TAX!$D$5)*TAX!$E$6%)+TAX!$G$5)/12, IF(Data!#REF!<=TAX!$D$7,(((Data!#REF!-TAX!$D$6)*TAX!$E$7%)+TAX!$G$6)/12, IF(Data!#REF!<=TAX!$D$8,(((Data!#REF!-TAX!$D$7)*TAX!$E$8%)+TAX!$G$7)/12, IF(Data!#REF!>5000000,(((Data!#REF!-TAX!$D$8)*TAX!$E$9%)+TAX!$G$8)/12,"")))))))) -> 
U79: =IF(Data!#REF!<=TAX!$D$2,TAX!$E$2%, IF(Data!#REF!<=TAX!$D$3,((Data!#REF!-TAX!$D$2)*TAX!$E$3%)/12, IF(Data!#REF!<=TAX!$D$4,(((Data!#REF!-TAX!$D$3)*TAX!$E$4%)+TAX!$G$3)/12, IF(Data!#REF!<=TAX!$D$5,(((Data!#REF!-TAX!$D$4)*TAX!$E$5%)+TAX!$G$4)/12, IF(Data!#REF!<=TAX!$D$6,(((Data!#REF!-TAX!$D$5)*TAX!$E$6%)+TAX!$G$5)/12, IF(Data!#REF!<=TAX!$D$7,(((Data!#REF!-TAX!$D$6)*TAX!$E$7%)+TAX!$G$6)/12, IF(Data!#REF!<=TAX!$D$8,(((Data!#REF!-TAX!$D$7)*TAX!$E$8%)+TAX!$G$7)/12, IF(Data!#REF!>5000000,(((Data!#REF!-TAX!$D$8)*TAX!$E$9%)+TAX!$G$8)/12,"")))))))) -> 
U80: =IF(Data!#REF!<=TAX!$D$2,TAX!$E$2%, IF(Data!#REF!<=TAX!$D$3,((Data!#REF!-TAX!$D$2)*TAX!$E$3%)/12, IF(Data!#REF!<=TAX!$D$4,(((Data!#REF!-TAX!$D$3)*TAX!$E$4%)+TAX!$G$3)/12, IF(Data!#REF!<=TAX!$D$5,(((Data!#REF!-TAX!$D$4)*TAX!$E$5%)+TAX!$G$4)/12, IF(Data!#REF!<=TAX!$D$6,(((Data!#REF!-TAX!$D$5)*TAX!$E$6%)+TAX!$G$5)/12, IF(Data!#REF!<=TAX!$D$7,(((Data!#REF!-TAX!$D$6)*TAX!$E$7%)+TAX!$G$6)/12, IF(Data!#REF!<=TAX!$D$8,(((Data!#REF!-TAX!$D$7)*TAX!$E$8%)+TAX!$G$7)/12, IF(Data!#REF!>5000000,(((Data!#REF!-TAX!$D$8)*TAX!$E$9%)+TAX!$G$8)/12,"")))))))) -> 
U81: =IF(Data!#REF!<=TAX!$D$2,TAX!$E$2%, IF(Data!#REF!<=TAX!$D$3,((Data!#REF!-TAX!$D$2)*TAX!$E$3%)/12, IF(Data!#REF!<=TAX!$D$4,(((Data!#REF!-TAX!$D$3)*TAX!$E$4%)+TAX!$G$3)/12, IF(Data!#REF!<=TAX!$D$5,(((Data!#REF!-TAX!$D$4)*TAX!$E$5%)+TAX!$G$4)/12, IF(Data!#REF!<=TAX!$D$6,(((Data!#REF!-TAX!$D$5)*TAX!$E$6%)+TAX!$G$5)/12, IF(Data!#REF!<=TAX!$D$7,(((Data!#REF!-TAX!$D$6)*TAX!$E$7%)+TAX!$G$6)/12, IF(Data!#REF!<=TAX!$D$8,(((Data!#REF!-TAX!$D$7)*TAX!$E$8%)+TAX!$G$7)/12, IF(Data!#REF!>5000000,(((Data!#REF!-TAX!$D$8)*TAX!$E$9%)+TAX!$G$8)/12,"")))))))) -> 
U82: =IF(Data!#REF!<=TAX!$D$2,TAX!$E$2%, IF(Data!#REF!<=TAX!$D$3,((Data!#REF!-TAX!$D$2)*TAX!$E$3%)/12, IF(Data!#REF!<=TAX!$D$4,(((Data!#REF!-TAX!$D$3)*TAX!$E$4%)+TAX!$G$3)/12, IF(Data!#REF!<=TAX!$D$5,(((Data!#REF!-TAX!$D$4)*TAX!$E$5%)+TAX!$G$4)/12, IF(Data!#REF!<=TAX!$D$6,(((Data!#REF!-TAX!$D$5)*TAX!$E$6%)+TAX!$G$5)/12, IF(Data!#REF!<=TAX!$D$7,(((Data!#REF!-TAX!$D$6)*TAX!$E$7%)+TAX!$G$6)/12, IF(Data!#REF!<=TAX!$D$8,(((Data!#REF!-TAX!$D$7)*TAX!$E$8%)+TAX!$G$7)/12, IF(Data!#REF!>5000000,(((Data!#REF!-TAX!$D$8)*TAX!$E$9%)+TAX!$G$8)/12,"")))))))) -> 
U83: =IF(Data!#REF!<=TAX!$D$2,TAX!$E$2%, IF(Data!#REF!<=TAX!$D$3,((Data!#REF!-TAX!$D$2)*TAX!$E$3%)/12, IF(Data!#REF!<=TAX!$D$4,(((Data!#REF!-TAX!$D$3)*TAX!$E$4%)+TAX!$G$3)/12, IF(Data!#REF!<=TAX!$D$5,(((Data!#REF!-TAX!$D$4)*TAX!$E$5%)+TAX!$G$4)/12, IF(Data!#REF!<=TAX!$D$6,(((Data!#REF!-TAX!$D$5)*TAX!$E$6%)+TAX!$G$5)/12, IF(Data!#REF!<=TAX!$D$7,(((Data!#REF!-TAX!$D$6)*TAX!$E$7%)+TAX!$G$6)/12, IF(Data!#REF!<=TAX!$D$8,(((Data!#REF!-TAX!$D$7)*TAX!$E$8%)+TAX!$G$7)/12, IF(Data!#REF!>5000000,(((Data!#REF!-TAX!$D$8)*TAX!$E$9%)+TAX!$G$8)/12,"")))))))) -> 
U84: =IF(Data!#REF!<=TAX!$D$2,TAX!$E$2%, IF(Data!#REF!<=TAX!$D$3,((Data!#REF!-TAX!$D$2)*TAX!$E$3%)/12, IF(Data!#REF!<=TAX!$D$4,(((Data!#REF!-TAX!$D$3)*TAX!$E$4%)+TAX!$G$3)/12, IF(Data!#REF!<=TAX!$D$5,(((Data!#REF!-TAX!$D$4)*TAX!$E$5%)+TAX!$G$4)/12, IF(Data!#REF!<=TAX!$D$6,(((Data!#REF!-TAX!$D$5)*TAX!$E$6%)+TAX!$G$5)/12, IF(Data!#REF!<=TAX!$D$7,(((Data!#REF!-TAX!$D$6)*TAX!$E$7%)+TAX!$G$6)/12, IF(Data!#REF!<=TAX!$D$8,(((Data!#REF!-TAX!$D$7)*TAX!$E$8%)+TAX!$G$7)/12, IF(Data!#REF!>5000000,(((Data!#REF!-TAX!$D$8)*TAX!$E$9%)+TAX!$G$8)/12,"")))))))) -> 
U85: =IF(Data!#REF!<=TAX!$D$2,TAX!$E$2%, IF(Data!#REF!<=TAX!$D$3,((Data!#REF!-TAX!$D$2)*TAX!$E$3%)/12, IF(Data!#REF!<=TAX!$D$4,(((Data!#REF!-TAX!$D$3)*TAX!$E$4%)+TAX!$G$3)/12, IF(Data!#REF!<=TAX!$D$5,(((Data!#REF!-TAX!$D$4)*TAX!$E$5%)+TAX!$G$4)/12, IF(Data!#REF!<=TAX!$D$6,(((Data!#REF!-TAX!$D$5)*TAX!$E$6%)+TAX!$G$5)/12, IF(Data!#REF!<=TAX!$D$7,(((Data!#REF!-TAX!$D$6)*TAX!$E$7%)+TAX!$G$6)/12, IF(Data!#REF!<=TAX!$D$8,(((Data!#REF!-TAX!$D$7)*TAX!$E$8%)+TAX!$G$7)/12, IF(Data!#REF!>5000000,(((Data!#REF!-TAX!$D$8)*TAX!$E$9%)+TAX!$G$8)/12,"")))))))) -> 
U86: =IF(Data!#REF!<=TAX!$D$2,TAX!$E$2%, IF(Data!#REF!<=TAX!$D$3,((Data!#REF!-TAX!$D$2)*TAX!$E$3%)/12, IF(Data!#REF!<=TAX!$D$4,(((Data!#REF!-TAX!$D$3)*TAX!$E$4%)+TAX!$G$3)/12, IF(Data!#REF!<=TAX!$D$5,(((Data!#REF!-TAX!$D$4)*TAX!$E$5%)+TAX!$G$4)/12, IF(Data!#REF!<=TAX!$D$6,(((Data!#REF!-TAX!$D$5)*TAX!$E$6%)+TAX!$G$5)/12, IF(Data!#REF!<=TAX!$D$7,(((Data!#REF!-TAX!$D$6)*TAX!$E$7%)+TAX!$G$6)/12, IF(Data!#REF!<=TAX!$D$8,(((Data!#REF!-TAX!$D$7)*TAX!$E$8%)+TAX!$G$7)/12, IF(Data!#REF!>5000000,(((Data!#REF!-TAX!$D$8)*TAX!$E$9%)+TAX!$G$8)/12,"")))))))) -> 
U87: =IF(Data!#REF!<=TAX!$D$2,TAX!$E$2%, IF(Data!#REF!<=TAX!$D$3,((Data!#REF!-TAX!$D$2)*TAX!$E$3%)/12, IF(Data!#REF!<=TAX!$D$4,(((Data!#REF!-TAX!$D$3)*TAX!$E$4%)+TAX!$G$3)/12, IF(Data!#REF!<=TAX!$D$5,(((Data!#REF!-TAX!$D$4)*TAX!$E$5%)+TAX!$G$4)/12, IF(Data!#REF!<=TAX!$D$6,(((Data!#REF!-TAX!$D$5)*TAX!$E$6%)+TAX!$G$5)/12, IF(Data!#REF!<=TAX!$D$7,(((Data!#REF!-TAX!$D$6)*TAX!$E$7%)+TAX!$G$6)/12, IF(Data!#REF!<=TAX!$D$8,(((Data!#REF!-TAX!$D$7)*TAX!$E$8%)+TAX!$G$7)/12, IF(Data!#REF!>5000000,(((Data!#REF!-TAX!$D$8)*TAX!$E$9%)+TAX!$G$8)/12,"")))))))) -> 
U88: =IF(Data!#REF!<=TAX!$D$2,TAX!$E$2%, IF(Data!#REF!<=TAX!$D$3,((Data!#REF!-TAX!$D$2)*TAX!$E$3%)/12, IF(Data!#REF!<=TAX!$D$4,(((Data!#REF!-TAX!$D$3)*TAX!$E$4%)+TAX!$G$3)/12, IF(Data!#REF!<=TAX!$D$5,(((Data!#REF!-TAX!$D$4)*TAX!$E$5%)+TAX!$G$4)/12, IF(Data!#REF!<=TAX!$D$6,(((Data!#REF!-TAX!$D$5)*TAX!$E$6%)+TAX!$G$5)/12, IF(Data!#REF!<=TAX!$D$7,(((Data!#REF!-TAX!$D$6)*TAX!$E$7%)+TAX!$G$6)/12, IF(Data!#REF!<=TAX!$D$8,(((Data!#REF!-TAX!$D$7)*TAX!$E$8%)+TAX!$G$7)/12, IF(Data!#REF!>5000000,(((Data!#REF!-TAX!$D$8)*TAX!$E$9%)+TAX!$G$8)/12,"")))))))) -> 
U89: =IF(Data!#REF!<=TAX!$D$2,TAX!$E$2%, IF(Data!#REF!<=TAX!$D$3,((Data!#REF!-TAX!$D$2)*TAX!$E$3%)/12, IF(Data!#REF!<=TAX!$D$4,(((Data!#REF!-TAX!$D$3)*TAX!$E$4%)+TAX!$G$3)/12, IF(Data!#REF!<=TAX!$D$5,(((Data!#REF!-TAX!$D$4)*TAX!$E$5%)+TAX!$G$4)/12, IF(Data!#REF!<=TAX!$D$6,(((Data!#REF!-TAX!$D$5)*TAX!$E$6%)+TAX!$G$5)/12, IF(Data!#REF!<=TAX!$D$7,(((Data!#REF!-TAX!$D$6)*TAX!$E$7%)+TAX!$G$6)/12, IF(Data!#REF!<=TAX!$D$8,(((Data!#REF!-TAX!$D$7)*TAX!$E$8%)+TAX!$G$7)/12, IF(Data!#REF!>5000000,(((Data!#REF!-TAX!$D$8)*TAX!$E$9%)+TAX!$G$8)/12,"")))))))) -> 
U90: =IF(Data!#REF!<=TAX!$D$2,TAX!$E$2%, IF(Data!#REF!<=TAX!$D$3,((Data!#REF!-TAX!$D$2)*TAX!$E$3%)/12, IF(Data!#REF!<=TAX!$D$4,(((Data!#REF!-TAX!$D$3)*TAX!$E$4%)+TAX!$G$3)/12, IF(Data!#REF!<=TAX!$D$5,(((Data!#REF!-TAX!$D$4)*TAX!$E$5%)+TAX!$G$4)/12, IF(Data!#REF!<=TAX!$D$6,(((Data!#REF!-TAX!$D$5)*TAX!$E$6%)+TAX!$G$5)/12, IF(Data!#REF!<=TAX!$D$7,(((Data!#REF!-TAX!$D$6)*TAX!$E$7%)+TAX!$G$6)/12, IF(Data!#REF!<=TAX!$D$8,(((Data!#REF!-TAX!$D$7)*TAX!$E$8%)+TAX!$G$7)/12, IF(Data!#REF!>5000000,(((Data!#REF!-TAX!$D$8)*TAX!$E$9%)+TAX!$G$8)/12,"")))))))) -> 
U91: =IF(Data!#REF!<=TAX!$D$2,TAX!$E$2%, IF(Data!#REF!<=TAX!$D$3,((Data!#REF!-TAX!$D$2)*TAX!$E$3%)/12, IF(Data!#REF!<=TAX!$D$4,(((Data!#REF!-TAX!$D$3)*TAX!$E$4%)+TAX!$G$3)/12, IF(Data!#REF!<=TAX!$D$5,(((Data!#REF!-TAX!$D$4)*TAX!$E$5%)+TAX!$G$4)/12, IF(Data!#REF!<=TAX!$D$6,(((Data!#REF!-TAX!$D$5)*TAX!$E$6%)+TAX!$G$5)/12, IF(Data!#REF!<=TAX!$D$7,(((Data!#REF!-TAX!$D$6)*TAX!$E$7%)+TAX!$G$6)/12, IF(Data!#REF!<=TAX!$D$8,(((Data!#REF!-TAX!$D$7)*TAX!$E$8%)+TAX!$G$7)/12, IF(Data!#REF!>5000000,(((Data!#REF!-TAX!$D$8)*TAX!$E$9%)+TAX!$G$8)/12,"")))))))) -> 
U92: =IF(Data!#REF!<=TAX!$D$2,TAX!$E$2%, IF(Data!#REF!<=TAX!$D$3,((Data!#REF!-TAX!$D$2)*TAX!$E$3%)/12, IF(Data!#REF!<=TAX!$D$4,(((Data!#REF!-TAX!$D$3)*TAX!$E$4%)+TAX!$G$3)/12, IF(Data!#REF!<=TAX!$D$5,(((Data!#REF!-TAX!$D$4)*TAX!$E$5%)+TAX!$G$4)/12, IF(Data!#REF!<=TAX!$D$6,(((Data!#REF!-TAX!$D$5)*TAX!$E$6%)+TAX!$G$5)/12, IF(Data!#REF!<=TAX!$D$7,(((Data!#REF!-TAX!$D$6)*TAX!$E$7%)+TAX!$G$6)/12, IF(Data!#REF!<=TAX!$D$8,(((Data!#REF!-TAX!$D$7)*TAX!$E$8%)+TAX!$G$7)/12, IF(Data!#REF!>5000000,(((Data!#REF!-TAX!$D$8)*TAX!$E$9%)+TAX!$G$8)/12,"")))))))) -> 
U93: =IF(Data!#REF!<=TAX!$D$2,TAX!$E$2%, IF(Data!#REF!<=TAX!$D$3,((Data!#REF!-TAX!$D$2)*TAX!$E$3%)/12, IF(Data!#REF!<=TAX!$D$4,(((Data!#REF!-TAX!$D$3)*TAX!$E$4%)+TAX!$G$3)/12, IF(Data!#REF!<=TAX!$D$5,(((Data!#REF!-TAX!$D$4)*TAX!$E$5%)+TAX!$G$4)/12, IF(Data!#REF!<=TAX!$D$6,(((Data!#REF!-TAX!$D$5)*TAX!$E$6%)+TAX!$G$5)/12, IF(Data!#REF!<=TAX!$D$7,(((Data!#REF!-TAX!$D$6)*TAX!$E$7%)+TAX!$G$6)/12, IF(Data!#REF!<=TAX!$D$8,(((Data!#REF!-TAX!$D$7)*TAX!$E$8%)+TAX!$G$7)/12, IF(Data!#REF!>5000000,(((Data!#REF!-TAX!$D$8)*TAX!$E$9%)+TAX!$G$8)/12,"")))))))) -> 
U94: =IF(Data!#REF!<=TAX!$D$2,TAX!$E$2%, IF(Data!#REF!<=TAX!$D$3,((Data!#REF!-TAX!$D$2)*TAX!$E$3%)/12, IF(Data!#REF!<=TAX!$D$4,(((Data!#REF!-TAX!$D$3)*TAX!$E$4%)+TAX!$G$3)/12, IF(Data!#REF!<=TAX!$D$5,(((Data!#REF!-TAX!$D$4)*TAX!$E$5%)+TAX!$G$4)/12, IF(Data!#REF!<=TAX!$D$6,(((Data!#REF!-TAX!$D$5)*TAX!$E$6%)+TAX!$G$5)/12, IF(Data!#REF!<=TAX!$D$7,(((Data!#REF!-TAX!$D$6)*TAX!$E$7%)+TAX!$G$6)/12, IF(Data!#REF!<=TAX!$D$8,(((Data!#REF!-TAX!$D$7)*TAX!$E$8%)+TAX!$G$7)/12, IF(Data!#REF!>5000000,(((Data!#REF!-TAX!$D$8)*TAX!$E$9%)+TAX!$G$8)/12,"")))))))) -> 
U95: =IF(Data!#REF!<=TAX!$D$2,TAX!$E$2%, IF(Data!#REF!<=TAX!$D$3,((Data!#REF!-TAX!$D$2)*TAX!$E$3%)/12, IF(Data!#REF!<=TAX!$D$4,(((Data!#REF!-TAX!$D$3)*TAX!$E$4%)+TAX!$G$3)/12, IF(Data!#REF!<=TAX!$D$5,(((Data!#REF!-TAX!$D$4)*TAX!$E$5%)+TAX!$G$4)/12, IF(Data!#REF!<=TAX!$D$6,(((Data!#REF!-TAX!$D$5)*TAX!$E$6%)+TAX!$G$5)/12, IF(Data!#REF!<=TAX!$D$7,(((Data!#REF!-TAX!$D$6)*TAX!$E$7%)+TAX!$G$6)/12, IF(Data!#REF!<=TAX!$D$8,(((Data!#REF!-TAX!$D$7)*TAX!$E$8%)+TAX!$G$7)/12, IF(Data!#REF!>5000000,(((Data!#REF!-TAX!$D$8)*TAX!$E$9%)+TAX!$G$8)/12,"")))))))) -> 
U96: =IF(Data!#REF!<=TAX!$D$2,TAX!$E$2%, IF(Data!#REF!<=TAX!$D$3,((Data!#REF!-TAX!$D$2)*TAX!$E$3%)/12, IF(Data!#REF!<=TAX!$D$4,(((Data!#REF!-TAX!$D$3)*TAX!$E$4%)+TAX!$G$3)/12, IF(Data!#REF!<=TAX!$D$5,(((Data!#REF!-TAX!$D$4)*TAX!$E$5%)+TAX!$G$4)/12, IF(Data!#REF!<=TAX!$D$6,(((Data!#REF!-TAX!$D$5)*TAX!$E$6%)+TAX!$G$5)/12, IF(Data!#REF!<=TAX!$D$7,(((Data!#REF!-TAX!$D$6)*TAX!$E$7%)+TAX!$G$6)/12, IF(Data!#REF!<=TAX!$D$8,(((Data!#REF!-TAX!$D$7)*TAX!$E$8%)+TAX!$G$7)/12, IF(Data!#REF!>5000000,(((Data!#REF!-TAX!$D$8)*TAX!$E$9%)+TAX!$G$8)/12,"")))))))) -> 
U97: =IF(Data!#REF!<=TAX!$D$2,TAX!$E$2%, IF(Data!#REF!<=TAX!$D$3,((Data!#REF!-TAX!$D$2)*TAX!$E$3%)/12, IF(Data!#REF!<=TAX!$D$4,(((Data!#REF!-TAX!$D$3)*TAX!$E$4%)+TAX!$G$3)/12, IF(Data!#REF!<=TAX!$D$5,(((Data!#REF!-TAX!$D$4)*TAX!$E$5%)+TAX!$G$4)/12, IF(Data!#REF!<=TAX!$D$6,(((Data!#REF!-TAX!$D$5)*TAX!$E$6%)+TAX!$G$5)/12, IF(Data!#REF!<=TAX!$D$7,(((Data!#REF!-TAX!$D$6)*TAX!$E$7%)+TAX!$G$6)/12, IF(Data!#REF!<=TAX!$D$8,(((Data!#REF!-TAX!$D$7)*TAX!$E$8%)+TAX!$G$7)/12, IF(Data!#REF!>5000000,(((Data!#REF!-TAX!$D$8)*TAX!$E$9%)+TAX!$G$8)/12,"")))))))) -> 
U98: =IF(Data!#REF!<=TAX!$D$2,TAX!$E$2%, IF(Data!#REF!<=TAX!$D$3,((Data!#REF!-TAX!$D$2)*TAX!$E$3%)/12, IF(Data!#REF!<=TAX!$D$4,(((Data!#REF!-TAX!$D$3)*TAX!$E$4%)+TAX!$G$3)/12, IF(Data!#REF!<=TAX!$D$5,(((Data!#REF!-TAX!$D$4)*TAX!$E$5%)+TAX!$G$4)/12, IF(Data!#REF!<=TAX!$D$6,(((Data!#REF!-TAX!$D$5)*TAX!$E$6%)+TAX!$G$5)/12, IF(Data!#REF!<=TAX!$D$7,(((Data!#REF!-TAX!$D$6)*TAX!$E$7%)+TAX!$G$6)/12, IF(Data!#REF!<=TAX!$D$8,(((Data!#REF!-TAX!$D$7)*TAX!$E$8%)+TAX!$G$7)/12, IF(Data!#REF!>5000000,(((Data!#REF!-TAX!$D$8)*TAX!$E$9%)+TAX!$G$8)/12,"")))))))) -> 
U99: =IF(Data!#REF!<=TAX!$D$2,TAX!$E$2%, IF(Data!#REF!<=TAX!$D$3,((Data!#REF!-TAX!$D$2)*TAX!$E$3%)/12, IF(Data!#REF!<=TAX!$D$4,(((Data!#REF!-TAX!$D$3)*TAX!$E$4%)+TAX!$G$3)/12, IF(Data!#REF!<=TAX!$D$5,(((Data!#REF!-TAX!$D$4)*TAX!$E$5%)+TAX!$G$4)/12, IF(Data!#REF!<=TAX!$D$6,(((Data!#REF!-TAX!$D$5)*TAX!$E$6%)+TAX!$G$5)/12, IF(Data!#REF!<=TAX!$D$7,(((Data!#REF!-TAX!$D$6)*TAX!$E$7%)+TAX!$G$6)/12, IF(Data!#REF!<=TAX!$D$8,(((Data!#REF!-TAX!$D$7)*TAX!$E$8%)+TAX!$G$7)/12, IF(Data!#REF!>5000000,(((Data!#REF!-TAX!$D$8)*TAX!$E$9%)+TAX!$G$8)/12,"")))))))) -> 
U100: =IF(Data!#REF!<=TAX!$D$2,TAX!$E$2%, IF(Data!#REF!<=TAX!$D$3,((Data!#REF!-TAX!$D$2)*TAX!$E$3%)/12, IF(Data!#REF!<=TAX!$D$4,(((Data!#REF!-TAX!$D$3)*TAX!$E$4%)+TAX!$G$3)/12, IF(Data!#REF!<=TAX!$D$5,(((Data!#REF!-TAX!$D$4)*TAX!$E$5%)+TAX!$G$4)/12, IF(Data!#REF!<=TAX!$D$6,(((Data!#REF!-TAX!$D$5)*TAX!$E$6%)+TAX!$G$5)/12, IF(Data!#REF!<=TAX!$D$7,(((Data!#REF!-TAX!$D$6)*TAX!$E$7%)+TAX!$G$6)/12, IF(Data!#REF!<=TAX!$D$8,(((Data!#REF!-TAX!$D$7)*TAX!$E$8%)+TAX!$G$7)/12, IF(Data!#REF!>5000000,(((Data!#REF!-TAX!$D$8)*TAX!$E$9%)+TAX!$G$8)/12,"")))))))) -> 
U101: =IF(Data!#REF!<=TAX!$D$2,TAX!$E$2%, IF(Data!#REF!<=TAX!$D$3,((Data!#REF!-TAX!$D$2)*TAX!$E$3%)/12, IF(Data!#REF!<=TAX!$D$4,(((Data!#REF!-TAX!$D$3)*TAX!$E$4%)+TAX!$G$3)/12, IF(Data!#REF!<=TAX!$D$5,(((Data!#REF!-TAX!$D$4)*TAX!$E$5%)+TAX!$G$4)/12, IF(Data!#REF!<=TAX!$D$6,(((Data!#REF!-TAX!$D$5)*TAX!$E$6%)+TAX!$G$5)/12, IF(Data!#REF!<=TAX!$D$7,(((Data!#REF!-TAX!$D$6)*TAX!$E$7%)+TAX!$G$6)/12, IF(Data!#REF!<=TAX!$D$8,(((Data!#REF!-TAX!$D$7)*TAX!$E$8%)+TAX!$G$7)/12, IF(Data!#REF!>5000000,(((Data!#REF!-TAX!$D$8)*TAX!$E$9%)+TAX!$G$8)/12,"")))))))) -> 
